Department family,Entity,Date,Expense Type,Expense area,Supplier,Transaction number,AP Amount (�)
Department of Health,NHS Sheffield CCG,30/09/2018,C&M-PMS Contract Value,PRC DELEGATED CO-COMMISSIONING,ABBEY LANE SURGERY,23812779,"23,023.18 "
Department of Health,NHS Sheffield CCG,30/09/2018,C&M-PMS DES Extended Hours Access,PRC DELEGATED CO-COMMISSIONING,ABBEY LANE SURGERY,23812779,"1,487.23 "
Department of Health,NHS Sheffield CCG,30/09/2018,C&M-PMS DES Learn Dsblty Hlth Chk,PRC DELEGATED CO-COMMISSIONING,ABBEY LANE SURGERY,23812779,140.00 
Department of Health,NHS Sheffield CCG,30/09/2018,C&M-PMS Prem Notional Rent,PRC DELEGATED CO-COMMISSIONING,ABBEY LANE SURGERY,23812779,"2,122.92 "
Department of Health,NHS Sheffield CCG,30/09/2018,C&M-PMS Prem Rates,PRC DELEGATED CO-COMMISSIONING,ABBEY LANE SURGERY,23812779,744.00 
Department of Health,NHS Sheffield CCG,30/09/2018,C&M-PMS QOF Aspiration,PRC DELEGATED CO-COMMISSIONING,ABBEY LANE SURGERY,23812779,"2,572.92 "
Department of Health,NHS Sheffield CCG,30/09/2018,Cont Care-Physical Disab (65+),CHC ADULT FULLY FUNDED,ABBEYCARE NURSING,23806031,"49,631.40 "
Department of Health,NHS Sheffield CCG,30/09/2018,C&M-PMS Contract Value,PRC DELEGATED CO-COMMISSIONING,AVENUE MEDICAL CENTRE SHEFFIELD,23812776,(78.52)
Department of Health,NHS Sheffield CCG,30/09/2018,C&M-PMS GP Statutory Levy,PRC DELEGATED CO-COMMISSIONING,AVENUE MEDICAL CENTRE SHEFFIELD,23812776,(214.32)
Department of Health,NHS Sheffield CCG,30/09/2018,C&M-PMS Out of Hours Opt Outs,PRC DELEGATED CO-COMMISSIONING,AVENUE MEDICAL CENTRE SHEFFIELD,23812776,"(2,533.42)"
Department of Health,NHS Sheffield CCG,30/09/2018,C&M-PMS Voluntary Levy,PRC DELEGATED CO-COMMISSIONING,AVENUE MEDICAL CENTRE SHEFFIELD,23812776,(35.72)
Department of Health,NHS Sheffield CCG,30/09/2018,C&M-PMS Contract Value,PRC DELEGATED CO-COMMISSIONING,AVENUE MEDICAL CENTRE SHEFFIELD,23812777,"53,221.15 "
Department of Health,NHS Sheffield CCG,30/09/2018,C&M-PMS DES Extended Hours Access,PRC DELEGATED CO-COMMISSIONING,AVENUE MEDICAL CENTRE SHEFFIELD,23812777,"3,386.28 "
Department of Health,NHS Sheffield CCG,30/09/2018,C&M-PMS Out of Hours Opt Outs,PRC DELEGATED CO-COMMISSIONING,AVENUE MEDICAL CENTRE SHEFFIELD,23812777,3.86 
Department of Health,NHS Sheffield CCG,30/09/2018,C&M-PMS PCO Other,PRC DELEGATED CO-COMMISSIONING,AVENUE MEDICAL CENTRE SHEFFIELD,23812777,511.39 
Department of Health,NHS Sheffield CCG,30/09/2018,C&M-PMS Prem Notional Rent,PRC DELEGATED CO-COMMISSIONING,AVENUE MEDICAL CENTRE SHEFFIELD,23812777,"5,546.67 "
Department of Health,NHS Sheffield CCG,30/09/2018,C&M-PMS Prem Rates,PRC DELEGATED CO-COMMISSIONING,AVENUE MEDICAL CENTRE SHEFFIELD,23812777,"1,002.00 "
Department of Health,NHS Sheffield CCG,30/09/2018,C&M-PMS QOF Aspiration,PRC DELEGATED CO-COMMISSIONING,AVENUE MEDICAL CENTRE SHEFFIELD,23812777,"5,705.45 "
Department of Health,NHS Sheffield CCG,30/09/2018,Hcare Srv Rec Fdtn Trust-Contract Baseline,ACUTE COMMISSIONING,BARNSLEY HOSPITAL NHS FOUNDATION TRUST,23805984,"73,344.00 "
Department of Health,NHS Sheffield CCG,30/09/2018,External Consultancy Fees,CLINICAL LEADS,BARNSLEY HOSPITAL NHS FOUNDATION TRUST,24030087,"28,300.00 "
Department of Health,NHS Sheffield CCG,30/09/2018,C&M-PMS Contract Value,PRC DELEGATED CO-COMMISSIONING,BARNSLEY ROAD SURGERY,23812781,"21,519.56 "
Department of Health,NHS Sheffield CCG,30/09/2018,C&M-PMS Prem Notional Rent,PRC DELEGATED CO-COMMISSIONING,BARNSLEY ROAD SURGERY,23812781,"2,652.17 "
Department of Health,NHS Sheffield CCG,30/09/2018,C&M-PMS QOF Aspiration,PRC DELEGATED CO-COMMISSIONING,BARNSLEY ROAD SURGERY,23812781,"2,364.70 "
Department of Health,NHS Sheffield CCG,30/09/2018,C&M-GMS Global Sum,PRC DELEGATED CO-COMMISSIONING,BASLOW ROAD & SHOREHAM STREET SURGERIES,24014721,"95,670.83 "
Department of Health,NHS Sheffield CCG,30/09/2018,C&M-GMS MPIG Correction Factor,PRC DELEGATED CO-COMMISSIONING,BASLOW ROAD & SHOREHAM STREET SURGERIES,24014721,292.43 
Department of Health,NHS Sheffield CCG,30/09/2018,C&M-GMS PCO Seniority,PRC DELEGATED CO-COMMISSIONING,BASLOW ROAD & SHOREHAM STREET SURGERIES,24014721,"1,953.95 "
Department of Health,NHS Sheffield CCG,30/09/2018,C&M-GMS Prem Notional Rent,PRC DELEGATED CO-COMMISSIONING,BASLOW ROAD & SHOREHAM STREET SURGERIES,24014721,"8,511.25 "
Department of Health,NHS Sheffield CCG,30/09/2018,C&M-GMS Prem Rates,PRC DELEGATED CO-COMMISSIONING,BASLOW ROAD & SHOREHAM STREET SURGERIES,24014721,"2,273.00 "
Department of Health,NHS Sheffield CCG,30/09/2018,C&M-GMS QOF Aspiration,PRC DELEGATED CO-COMMISSIONING,BASLOW ROAD & SHOREHAM STREET SURGERIES,24014721,"10,715.96 "
Department of Health,NHS Sheffield CCG,30/09/2018,Cont Care-Physical Disab (65+),CHC ADULT FULLY FUNDED,BC SHEFFIELD LTD,23866349,"35,724.20 "
Department of Health,NHS Sheffield CCG,30/09/2018,External Consultancy Fees,BEREAVEMENT SERVICE,BDO LLP,23930564,"62,100.00 "
Department of Health,NHS Sheffield CCG,30/09/2018,C&M-PMS Contract Value,PRC DELEGATED CO-COMMISSIONING,BIRLEY HEALTH CENTRE,23812783,"62,615.29 "
Department of Health,NHS Sheffield CCG,30/09/2018,C&M-PMS DES Extended Hours Access,PRC DELEGATED CO-COMMISSIONING,BIRLEY HEALTH CENTRE,23812783,"4,039.40 "
Department of Health,NHS Sheffield CCG,30/09/2018,C&M-PMS Out of Hours Opt Outs,PRC DELEGATED CO-COMMISSIONING,BIRLEY HEALTH CENTRE,23812783,7.06 
Department of Health,NHS Sheffield CCG,30/09/2018,C&M-PMS PCO Seniority,PRC DELEGATED CO-COMMISSIONING,BIRLEY HEALTH CENTRE,23812783,"4,605.88 "
Department of Health,NHS Sheffield CCG,30/09/2018,C&M-PMS Prem Notional Rent,PRC DELEGATED CO-COMMISSIONING,BIRLEY HEALTH CENTRE,23812783,"7,600.58 "
Department of Health,NHS Sheffield CCG,30/09/2018,C&M-PMS QOF Aspiration,PRC DELEGATED CO-COMMISSIONING,BIRLEY HEALTH CENTRE,23812783,"7,642.20 "
Department of Health,NHS Sheffield CCG,30/09/2018,Clinical&Medical-Independent Sector,ACUTE COMMISSIONING,BMI HEALTHCARE COLLECTIONS,23806013,"84,881.31 "
Department of Health,NHS Sheffield CCG,30/09/2018,Clinical&Medical-Independent Sector,ACUTE COMMISSIONING,BMI HEALTHCARE COLLECTIONS,23854664,"(36,126.94)"
Department of Health,NHS Sheffield CCG,30/09/2018,C&M-GMS Cost of Drugs -Prescribing,LOCAL ENHANCED SERVICES,BROOMHILL SURGERY,24014735,"2,191.42 "
Department of Health,NHS Sheffield CCG,30/09/2018,C&M-GMS DES Extended Hours Access,PRC DELEGATED CO-COMMISSIONING,BROOMHILL SURGERY,24014735,"4,575.20 "
Department of Health,NHS Sheffield CCG,30/09/2018,C&M-GMS DES Learn Dsblty Hlth Chk,PRC DELEGATED CO-COMMISSIONING,BROOMHILL SURGERY,24014735,140.00 
Department of Health,NHS Sheffield CCG,30/09/2018,C&M-GMS Global Sum,PRC DELEGATED CO-COMMISSIONING,BROOMHILL SURGERY,24014735,"62,467.91 "
Department of Health,NHS Sheffield CCG,30/09/2018,C&M-GMS MPIG Correction Factor,PRC DELEGATED CO-COMMISSIONING,BROOMHILL SURGERY,24014735,502.00 
Department of Health,NHS Sheffield CCG,30/09/2018,C&M-GMS PCO Other,PRC DELEGATED CO-COMMISSIONING,BROOMHILL SURGERY,24014735,"4,526.00 "
Department of Health,NHS Sheffield CCG,30/09/2018,C&M-GMS PCO Seniority,PRC DELEGATED CO-COMMISSIONING,BROOMHILL SURGERY,24014735,"3,864.24 "
Department of Health,NHS Sheffield CCG,30/09/2018,C&M-GMS Prem Cost Rent,PRC DELEGATED CO-COMMISSIONING,BROOMHILL SURGERY,24014735,"3,380.00 "
Department of Health,NHS Sheffield CCG,30/09/2018,C&M-GMS Prem Notional Rent,PRC DELEGATED CO-COMMISSIONING,BROOMHILL SURGERY,24014735,"2,612.50 "
Department of Health,NHS Sheffield CCG,30/09/2018,C&M-GMS Prem Rates,PRC DELEGATED CO-COMMISSIONING,BROOMHILL SURGERY,24014735,"1,848.00 "
Department of Health,NHS Sheffield CCG,30/09/2018,C&M-GMS Prof Fees Prescribing,PRC DELEGATED CO-COMMISSIONING,BROOMHILL SURGERY,24014735,142.60 
Department of Health,NHS Sheffield CCG,30/09/2018,C&M-GMS QOF Aspiration,PRC DELEGATED CO-COMMISSIONING,BROOMHILL SURGERY,24014735,"6,274.17 "
Department of Health,NHS Sheffield CCG,30/09/2018,Legal / Prof Fees,CONTINUING HEALTHCARE ASSESSMENT & SUPPORT,BROWNE JACOBSON LLP,23854606,"13,038.58 "
Department of Health,NHS Sheffield CCG,30/09/2018,Legal / Prof Fees,CHC ADULT FULLY FUNDED,BROWNE JACOBSON LLP,23854606,625.00 
Department of Health,NHS Sheffield CCG,30/09/2018,Other professional fees,BEREAVEMENT SERVICE,BROWNE JACOBSON LLP,23854606,"11,926.65 "
Department of Health,NHS Sheffield CCG,30/09/2018,C&M-GMS Cost of Drugs -Prescribing,LOCAL ENHANCED SERVICES,BUCHANAN ROAD SURGERY,24014727,87.56 
Department of Health,NHS Sheffield CCG,30/09/2018,C&M-GMS Global Sum,PRC DELEGATED CO-COMMISSIONING,BUCHANAN ROAD SURGERY,24014727,"35,327.41 "
Department of Health,NHS Sheffield CCG,30/09/2018,C&M-GMS MPIG Correction Factor,PRC DELEGATED CO-COMMISSIONING,BUCHANAN ROAD SURGERY,24014727,"1,310.51 "
Department of Health,NHS Sheffield CCG,30/09/2018,C&M-GMS PCO Locum Adop/Pat/Mat,PRC DELEGATED CO-COMMISSIONING,BUCHANAN ROAD SURGERY,24014727,"25,419.89 "
Department of Health,NHS Sheffield CCG,30/09/2018,C&M-GMS PCO Seniority,PRC DELEGATED CO-COMMISSIONING,BUCHANAN ROAD SURGERY,24014727,561.53 
Department of Health,NHS Sheffield CCG,30/09/2018,C&M-GMS Prem Notional Rent,PRC DELEGATED CO-COMMISSIONING,BUCHANAN ROAD SURGERY,24014727,"2,595.83 "
Department of Health,NHS Sheffield CCG,30/09/2018,C&M-GMS Prem Rates,PRC DELEGATED CO-COMMISSIONING,BUCHANAN ROAD SURGERY,24014727,864.00 
Department of Health,NHS Sheffield CCG,30/09/2018,C&M-GMS Prof Fees Prescribing,PRC DELEGATED CO-COMMISSIONING,BUCHANAN ROAD SURGERY,24014727,32.20 
Department of Health,NHS Sheffield CCG,30/09/2018,C&M-GMS QOF Aspiration,PRC DELEGATED CO-COMMISSIONING,BUCHANAN ROAD SURGERY,24014727,"4,144.11 "
Department of Health,NHS Sheffield CCG,30/09/2018,C&M-PMS Contract Value,PRC DELEGATED CO-COMMISSIONING,BURNCROSS SURGERY,23812785,"119,768.41 "
Department of Health,NHS Sheffield CCG,30/09/2018,C&M-PMS DES Extended Hours Access,PRC DELEGATED CO-COMMISSIONING,BURNCROSS SURGERY,23812785,"7,340.18 "
Department of Health,NHS Sheffield CCG,30/09/2018,C&M-PMS PCO Seniority,PRC DELEGATED CO-COMMISSIONING,BURNCROSS SURGERY,23812785,"4,060.26 "
Department of Health,NHS Sheffield CCG,30/09/2018,C&M-PMS Prem Notional Rent,PRC DELEGATED CO-COMMISSIONING,BURNCROSS SURGERY,23812785,"14,058.33 "
Department of Health,NHS Sheffield CCG,30/09/2018,C&M-PMS QOF Aspiration,PRC DELEGATED CO-COMMISSIONING,BURNCROSS SURGERY,23812785,"16,082.74 "
Department of Health,NHS Sheffield CCG,30/09/2018,C&M-PMS Contract Value,PRC DELEGATED CO-COMMISSIONING,BURNGREAVE SURGERY,23812787,"56,188.35 "
Department of Health,NHS Sheffield CCG,30/09/2018,C&M-PMS DES Extended Hours Access,PRC DELEGATED CO-COMMISSIONING,BURNGREAVE SURGERY,23812787,"3,195.33 "
Department of Health,NHS Sheffield CCG,30/09/2018,C&M-PMS DES Learn Dsblty Hlth Chk,PRC DELEGATED CO-COMMISSIONING,BURNGREAVE SURGERY,23812787,"1,540.00 "
Department of Health,NHS Sheffield CCG,30/09/2018,C&M-PMS PCO Seniority,PRC DELEGATED CO-COMMISSIONING,BURNGREAVE SURGERY,23812787,"1,519.60 "
Department of Health,NHS Sheffield CCG,30/09/2018,C&M-PMS Prem Notional Rent,PRC DELEGATED CO-COMMISSIONING,BURNGREAVE SURGERY,23812787,"6,622.92 "
Department of Health,NHS Sheffield CCG,30/09/2018,C&M-PMS Prem Rates,PRC DELEGATED CO-COMMISSIONING,BURNGREAVE SURGERY,23812787,"1,929.00 "
Department of Health,NHS Sheffield CCG,30/09/2018,C&M-PMS QOF Aspiration,PRC DELEGATED CO-COMMISSIONING,BURNGREAVE SURGERY,23812787,"4,881.27 "
Department of Health,NHS Sheffield CCG,30/09/2018,C&M-GMS Cost of Drugs -Prescribing,LOCAL ENHANCED SERVICES,CARTERKNOWLE & DORE MEDICAL PRACTICE,24014742,"3,236.77 "
Department of Health,NHS Sheffield CCG,30/09/2018,C&M-GMS DES Extended Hours Access,PRC DELEGATED CO-COMMISSIONING,CARTERKNOWLE & DORE MEDICAL PRACTICE,24014742,"5,880.03 "
Department of Health,NHS Sheffield CCG,30/09/2018,C&M-GMS DES Learn Dsblty Hlth Chk,PRC DELEGATED CO-COMMISSIONING,CARTERKNOWLE & DORE MEDICAL PRACTICE,24014742,"6,860.00 "
Department of Health,NHS Sheffield CCG,30/09/2018,C&M-GMS Global Sum,PRC DELEGATED CO-COMMISSIONING,CARTERKNOWLE & DORE MEDICAL PRACTICE,24014742,"82,367.79 "
Department of Health,NHS Sheffield CCG,30/09/2018,C&M-GMS MPIG Correction Factor,PRC DELEGATED CO-COMMISSIONING,CARTERKNOWLE & DORE MEDICAL PRACTICE,24014742,"1,494.59 "
Department of Health,NHS Sheffield CCG,30/09/2018,C&M-GMS PCO Other,PRC DELEGATED CO-COMMISSIONING,CARTERKNOWLE & DORE MEDICAL PRACTICE,24014742,838.11 
Department of Health,NHS Sheffield CCG,30/09/2018,C&M-GMS PCO Seniority,PRC DELEGATED CO-COMMISSIONING,CARTERKNOWLE & DORE MEDICAL PRACTICE,24014742,"2,773.78 "
Department of Health,NHS Sheffield CCG,30/09/2018,C&M-GMS Prem Notional Rent,PRC DELEGATED CO-COMMISSIONING,CARTERKNOWLE & DORE MEDICAL PRACTICE,24014742,"7,596.50 "
Department of Health,NHS Sheffield CCG,30/09/2018,C&M-GMS Prem Rates,PRC DELEGATED CO-COMMISSIONING,CARTERKNOWLE & DORE MEDICAL PRACTICE,24014742,"1,880.00 "
Department of Health,NHS Sheffield CCG,30/09/2018,C&M-GMS Prof Fees Prescribing,PRC DELEGATED CO-COMMISSIONING,CARTERKNOWLE & DORE MEDICAL PRACTICE,24014742,250.70 
Department of Health,NHS Sheffield CCG,30/09/2018,C&M-GMS QOF Aspiration,PRC DELEGATED CO-COMMISSIONING,CARTERKNOWLE & DORE MEDICAL PRACTICE,24014742,"10,163.70 "
Department of Health,NHS Sheffield CCG,30/09/2018,C&M-GMS Cost of Drugs -Prescribing,LOCAL ENHANCED SERVICES,CHARNOCK HEALTH PRIMARY CARE CENTRE,24014738,909.41 
Department of Health,NHS Sheffield CCG,30/09/2018,C&M-GMS DES Extended Hours Access,PRC DELEGATED CO-COMMISSIONING,CHARNOCK HEALTH PRIMARY CARE CENTRE,24014738,"2,555.98 "
Department of Health,NHS Sheffield CCG,30/09/2018,C&M-GMS Global Sum,PRC DELEGATED CO-COMMISSIONING,CHARNOCK HEALTH PRIMARY CARE CENTRE,24014738,"40,897.62 "
Department of Health,NHS Sheffield CCG,30/09/2018,C&M-GMS MPIG Correction Factor,PRC DELEGATED CO-COMMISSIONING,CHARNOCK HEALTH PRIMARY CARE CENTRE,24014738,413.25 
Department of Health,NHS Sheffield CCG,30/09/2018,C&M-GMS PCO Locum Adop/Pat/Mat,PRC DELEGATED CO-COMMISSIONING,CHARNOCK HEALTH PRIMARY CARE CENTRE,24014738,"4,989.49 "
Department of Health,NHS Sheffield CCG,30/09/2018,C&M-GMS PCO Other,PRC DELEGATED CO-COMMISSIONING,CHARNOCK HEALTH PRIMARY CARE CENTRE,24014738,395.85 
Department of Health,NHS Sheffield CCG,30/09/2018,C&M-GMS PCO Seniority,PRC DELEGATED CO-COMMISSIONING,CHARNOCK HEALTH PRIMARY CARE CENTRE,24014738,"1,659.71 "
Department of Health,NHS Sheffield CCG,30/09/2018,C&M-GMS Prem Notional Rent,PRC DELEGATED CO-COMMISSIONING,CHARNOCK HEALTH PRIMARY CARE CENTRE,24014738,335.00 
Department of Health,NHS Sheffield CCG,30/09/2018,C&M-GMS Prem Rates,PRC DELEGATED CO-COMMISSIONING,CHARNOCK HEALTH PRIMARY CARE CENTRE,24014738,"1,247.00 "
Department of Health,NHS Sheffield CCG,30/09/2018,C&M-GMS Prem Water Rates,PRC DELEGATED CO-COMMISSIONING,CHARNOCK HEALTH PRIMARY CARE CENTRE,24014738,245.09 
Department of Health,NHS Sheffield CCG,30/09/2018,C&M-GMS Prof Fees Prescribing,PRC DELEGATED CO-COMMISSIONING,CHARNOCK HEALTH PRIMARY CARE CENTRE,24014738,121.90 
Department of Health,NHS Sheffield CCG,30/09/2018,C&M-GMS QOF Aspiration,PRC DELEGATED CO-COMMISSIONING,CHARNOCK HEALTH PRIMARY CARE CENTRE,24014738,"4,710.20 "
Department of Health,NHS Sheffield CCG,30/09/2018,Hcare Srv Rec Fdtn Trust-Contract Baseline,ACUTE COMMISSIONING,CHESTERFIELD ROYAL HOSPITAL NHS FOUNDATION TRUST,23854684,"36,952.00 "
Department of Health,NHS Sheffield CCG,30/09/2018,Hcare Srv Rec Fdtn Trust-Contract Baseline,ACUTE COMMISSIONING,CHESTERFIELD ROYAL HOSPITAL NHS FOUNDATION TRUST,23930650,"266,428.00 "
Department of Health,NHS Sheffield CCG,30/09/2018,Clinical&Medical-Independent Sector,ACUTE COMMISSIONING,CLAREMONT HOSPITAL,23806035,"65,047.00 "
Department of Health,NHS Sheffield CCG,30/09/2018,Voids and Subsidies,PRC DELEGATED CO-COMMISSIONING,COMMUNITY HEALTH PARTNERSHIPS LTD,23979417,"20,929.47 "
Department of Health,NHS Sheffield CCG,30/09/2018,Voids and Subsidies,RECHARGES NHS PROPERTY SERVICES LTD,COMMUNITY HEALTH PARTNERSHIPS LTD,23979417,"113,294.98 "
Department of Health,NHS Sheffield CCG,30/09/2018,Cont Care-Funded Nursing Care Allow,FUNDED NURSING CARE,COUNTRY COURT CARE LTD,23866393,"26,548.34 "
Department of Health,NHS Sheffield CCG,30/09/2018,C&M-GMS Cost of Drugs -Prescribing,LOCAL ENHANCED SERVICES,CROOKES PRACTICE,24014751,317.04 
Department of Health,NHS Sheffield CCG,30/09/2018,C&M-GMS DES Extended Hours Access,PRC DELEGATED CO-COMMISSIONING,CROOKES PRACTICE,24014751,"3,784.80 "
Department of Health,NHS Sheffield CCG,30/09/2018,C&M-GMS DES Learn Dsblty Hlth Chk,PRC DELEGATED CO-COMMISSIONING,CROOKES PRACTICE,24014751,980.00 
Department of Health,NHS Sheffield CCG,30/09/2018,C&M-GMS Global Sum,PRC DELEGATED CO-COMMISSIONING,CROOKES PRACTICE,24014751,"49,360.79 "
Department of Health,NHS Sheffield CCG,30/09/2018,C&M-GMS MPIG Correction Factor,PRC DELEGATED CO-COMMISSIONING,CROOKES PRACTICE,24014751,"1,545.92 "
Department of Health,NHS Sheffield CCG,30/09/2018,C&M-GMS PCO Other,PRC DELEGATED CO-COMMISSIONING,CROOKES PRACTICE,24014751,559.22 
Department of Health,NHS Sheffield CCG,30/09/2018,C&M-GMS PCO Seniority,PRC DELEGATED CO-COMMISSIONING,CROOKES PRACTICE,24014751,973.30 
Department of Health,NHS Sheffield CCG,30/09/2018,C&M-GMS Prem Notional Rent,PRC DELEGATED CO-COMMISSIONING,CROOKES PRACTICE,24014751,"3,874.67 "
Department of Health,NHS Sheffield CCG,30/09/2018,C&M-GMS Prem Rates,PRC DELEGATED CO-COMMISSIONING,CROOKES PRACTICE,24014751,"1,476.00 "
Department of Health,NHS Sheffield CCG,30/09/2018,C&M-GMS Prem Water Rates,PRC DELEGATED CO-COMMISSIONING,CROOKES PRACTICE,24014751,173.54 
Department of Health,NHS Sheffield CCG,30/09/2018,C&M-GMS Prof Fees Prescribing,PRC DELEGATED CO-COMMISSIONING,CROOKES PRACTICE,24014751,71.30 
Department of Health,NHS Sheffield CCG,30/09/2018,C&M-GMS QOF Aspiration,PRC DELEGATED CO-COMMISSIONING,CROOKES PRACTICE,24014751,"5,056.52 "
Department of Health,NHS Sheffield CCG,30/09/2018,Cont Care-Learning Disab(<65),CHC ADULT FULLY FUNDED,CYGNET LEARNING DISABILITIES MIDLANDS LTD,23741776,"(44,640.00)"
Department of Health,NHS Sheffield CCG,30/09/2018,Cont Care-Learning Disab(<65),CHC ADULT FULLY FUNDED,CYGNET LEARNING DISABILITIES MIDLANDS LTD,23741798,"44,640.00 "
Department of Health,NHS Sheffield CCG,30/09/2018,C&M-PMS Contract Value,PRC DELEGATED CO-COMMISSIONING,DEEPCAR MEDICAL CENTRE,23812791,"40,275.97 "
Department of Health,NHS Sheffield CCG,30/09/2018,C&M-PMS DES Extended Hours Access,PRC DELEGATED CO-COMMISSIONING,DEEPCAR MEDICAL CENTRE,23812791,"2,470.95 "
Department of Health,NHS Sheffield CCG,30/09/2018,C&M-PMS PCO Seniority,PRC DELEGATED CO-COMMISSIONING,DEEPCAR MEDICAL CENTRE,23812791,"1,309.22 "
Department of Health,NHS Sheffield CCG,30/09/2018,C&M-PMS Prem Healthcentre Rent,PRC DELEGATED CO-COMMISSIONING,DEEPCAR MEDICAL CENTRE,23812791,"29,067.58 "
Department of Health,NHS Sheffield CCG,30/09/2018,C&M-PMS QOF Aspiration,PRC DELEGATED CO-COMMISSIONING,DEEPCAR MEDICAL CENTRE,23812791,"4,182.29 "
Department of Health,NHS Sheffield CCG,30/09/2018,Other professional fees,BEREAVEMENT SERVICE,DELOITTE MCS LTD,23884128,"95,710.36 "
Department of Health,NHS Sheffield CCG,30/09/2018,C&M-GMS Cost of Drugs -Prescribing,LOCAL ENHANCED SERVICES,DEVONSHIRE GREEN MEDICAL CENTRE,24014757,687.07 
Department of Health,NHS Sheffield CCG,30/09/2018,C&M-GMS Global Sum,PRC DELEGATED CO-COMMISSIONING,DEVONSHIRE GREEN MEDICAL CENTRE,24014757,"44,691.36 "
Department of Health,NHS Sheffield CCG,30/09/2018,C&M-GMS MPIG Correction Factor,PRC DELEGATED CO-COMMISSIONING,DEVONSHIRE GREEN MEDICAL CENTRE,24014757,"3,231.20 "
Department of Health,NHS Sheffield CCG,30/09/2018,C&M-GMS PCO Seniority,PRC DELEGATED CO-COMMISSIONING,DEVONSHIRE GREEN MEDICAL CENTRE,24014757,"2,382.18 "
Department of Health,NHS Sheffield CCG,30/09/2018,C&M-GMS Prem Notional Rent,PRC DELEGATED CO-COMMISSIONING,DEVONSHIRE GREEN MEDICAL CENTRE,24014757,"5,987.50 "
Department of Health,NHS Sheffield CCG,30/09/2018,C&M-GMS Prem Rates,PRC DELEGATED CO-COMMISSIONING,DEVONSHIRE GREEN MEDICAL CENTRE,24014757,866.00 
Department of Health,NHS Sheffield CCG,30/09/2018,C&M-GMS Prof Fees Prescribing,PRC DELEGATED CO-COMMISSIONING,DEVONSHIRE GREEN MEDICAL CENTRE,24014757,117.30 
Department of Health,NHS Sheffield CCG,30/09/2018,C&M-GMS QOF Aspiration,PRC DELEGATED CO-COMMISSIONING,DEVONSHIRE GREEN MEDICAL CENTRE,24014757,"4,641.81 "
Department of Health,NHS Sheffield CCG,30/09/2018,Hcare Srv Rec Fdtn Trust-Contract Baseline,ACUTE COMMISSIONING,DONCASTER AND BASSETLAW HOSPITALS NHS FOUNDATION TRUST,23854710,"35,160.00 "
Department of Health,NHS Sheffield CCG,30/09/2018,Other Gen Supplies & Srv,CLINICAL LEADS,DONCASTER AND BASSETLAW HOSPITALS NHS FOUNDATION TRUST,23892757,"100,000.00 "
Department of Health,NHS Sheffield CCG,30/09/2018,C&M-PMS Contract Value,PRC DELEGATED CO-COMMISSIONING,DOVERCOURT SURGERY,23812793,"71,126.01 "
Department of Health,NHS Sheffield CCG,30/09/2018,C&M-PMS DES Extended Hours Access,PRC DELEGATED CO-COMMISSIONING,DOVERCOURT SURGERY,23812793,"3,960.08 "
Department of Health,NHS Sheffield CCG,30/09/2018,C&M-PMS DES Learn Dsblty Hlth Chk,PRC DELEGATED CO-COMMISSIONING,DOVERCOURT SURGERY,23812793,"2,380.00 "
Department of Health,NHS Sheffield CCG,30/09/2018,C&M-PMS Out of Hours Opt Outs,PRC DELEGATED CO-COMMISSIONING,DOVERCOURT SURGERY,23812793,7.91 
Department of Health,NHS Sheffield CCG,30/09/2018,C&M-PMS PCO Other,PRC DELEGATED CO-COMMISSIONING,DOVERCOURT SURGERY,23812793,584.56 
Department of Health,NHS Sheffield CCG,30/09/2018,C&M-PMS PCO Seniority,PRC DELEGATED CO-COMMISSIONING,DOVERCOURT SURGERY,23812793,"1,520.06 "
Department of Health,NHS Sheffield CCG,30/09/2018,C&M-PMS Prem Actual Rent,PRC DELEGATED CO-COMMISSIONING,DOVERCOURT SURGERY,23812793,"12,400.00 "
Department of Health,NHS Sheffield CCG,30/09/2018,C&M-PMS Prem Notional Rent,PRC DELEGATED CO-COMMISSIONING,DOVERCOURT SURGERY,23812793,"1,708.34 "
Department of Health,NHS Sheffield CCG,30/09/2018,C&M-PMS QOF Aspiration,PRC DELEGATED CO-COMMISSIONING,DOVERCOURT SURGERY,23812793,"7,443.07 "
Department of Health,NHS Sheffield CCG,30/09/2018,C&M-PMS Contract Value,PRC DELEGATED CO-COMMISSIONING,DR MEHROTRA & PARTNER,23812795,"27,417.44 "
Department of Health,NHS Sheffield CCG,30/09/2018,C&M-PMS DES Extended Hours Access,PRC DELEGATED CO-COMMISSIONING,DR MEHROTRA & PARTNER,23812795,"1,622.13 "
Department of Health,NHS Sheffield CCG,30/09/2018,C&M-PMS PCO Seniority,PRC DELEGATED CO-COMMISSIONING,DR MEHROTRA & PARTNER,23812795,567.64 
Department of Health,NHS Sheffield CCG,30/09/2018,C&M-PMS Prem Actual Rent,PRC DELEGATED CO-COMMISSIONING,DR MEHROTRA & PARTNER,23812795,"2,650.00 "
Department of Health,NHS Sheffield CCG,30/09/2018,C&M-PMS Prem Notional Rent,PRC DELEGATED CO-COMMISSIONING,DR MEHROTRA & PARTNER,23812795,"5,157.29 "
Department of Health,NHS Sheffield CCG,30/09/2018,C&M-PMS Prem Rates,PRC DELEGATED CO-COMMISSIONING,DR MEHROTRA & PARTNER,23812795,"1,463.00 "
Department of Health,NHS Sheffield CCG,30/09/2018,C&M-PMS QOF Aspiration,PRC DELEGATED CO-COMMISSIONING,DR MEHROTRA & PARTNER,23812795,"3,078.44 "
Department of Health,NHS Sheffield CCG,30/09/2018,C&M-PMS Contract Value,PRC DELEGATED CO-COMMISSIONING,DR MILNER & PARTNERS,23812796,(196.42)
Department of Health,NHS Sheffield CCG,30/09/2018,C&M-PMS GP Statutory Levy,PRC DELEGATED CO-COMMISSIONING,DR MILNER & PARTNERS,23812796,(319.47)
Department of Health,NHS Sheffield CCG,30/09/2018,C&M-PMS Out of Hours Opt Outs,PRC DELEGATED CO-COMMISSIONING,DR MILNER & PARTNERS,23812796,"(3,496.06)"
Department of Health,NHS Sheffield CCG,30/09/2018,C&M-PMS Voluntary Levy,PRC DELEGATED CO-COMMISSIONING,DR MILNER & PARTNERS,23812796,(53.25)
Department of Health,NHS Sheffield CCG,30/09/2018,C&M-PMS Contract Value,PRC DELEGATED CO-COMMISSIONING,DR MILNER & PARTNERS,23812797,"74,261.37 "
Department of Health,NHS Sheffield CCG,30/09/2018,C&M-PMS DES Extended Hours Access,PRC DELEGATED CO-COMMISSIONING,DR MILNER & PARTNERS,23812797,"5,036.90 "
Department of Health,NHS Sheffield CCG,30/09/2018,C&M-PMS DES Learn Dsblty Hlth Chk,PRC DELEGATED CO-COMMISSIONING,DR MILNER & PARTNERS,23812797,"1,820.00 "
Department of Health,NHS Sheffield CCG,30/09/2018,C&M-PMS Out of Hours Opt Outs,PRC DELEGATED CO-COMMISSIONING,DR MILNER & PARTNERS,23812797,9.66 
Department of Health,NHS Sheffield CCG,30/09/2018,C&M-PMS PCO Seniority,PRC DELEGATED CO-COMMISSIONING,DR MILNER & PARTNERS,23812797,"1,567.76 "
Department of Health,NHS Sheffield CCG,30/09/2018,C&M-PMS Prem Actual Rent,PRC DELEGATED CO-COMMISSIONING,DR MILNER & PARTNERS,23812797,"11,382.00 "
Department of Health,NHS Sheffield CCG,30/09/2018,C&M-PMS Prem Notional Rent,PRC DELEGATED CO-COMMISSIONING,DR MILNER & PARTNERS,23812797,"4,462.42 "
Department of Health,NHS Sheffield CCG,30/09/2018,C&M-PMS Prem Rates,PRC DELEGATED CO-COMMISSIONING,DR MILNER & PARTNERS,23812797,"2,464.00 "
Department of Health,NHS Sheffield CCG,30/09/2018,C&M-PMS QOF Aspiration,PRC DELEGATED CO-COMMISSIONING,DR MILNER & PARTNERS,23812797,"6,553.23 "
Department of Health,NHS Sheffield CCG,30/09/2018,C&M-GMS DES Extended Hours Access,PRC DELEGATED CO-COMMISSIONING,DUKE MEDICAL CENTRE,24014772,"3,310.75 "
Department of Health,NHS Sheffield CCG,30/09/2018,C&M-GMS DES Learn Dsblty Hlth Chk,PRC DELEGATED CO-COMMISSIONING,DUKE MEDICAL CENTRE,24014772,420.00 
Department of Health,NHS Sheffield CCG,30/09/2018,C&M-GMS Global Sum,PRC DELEGATED CO-COMMISSIONING,DUKE MEDICAL CENTRE,24014772,"56,419.92 "
Department of Health,NHS Sheffield CCG,30/09/2018,C&M-GMS MPIG Correction Factor,PRC DELEGATED CO-COMMISSIONING,DUKE MEDICAL CENTRE,24014772,612.51 
Department of Health,NHS Sheffield CCG,30/09/2018,C&M-GMS PCO Other,PRC DELEGATED CO-COMMISSIONING,DUKE MEDICAL CENTRE,24014772,495.17 
Department of Health,NHS Sheffield CCG,30/09/2018,C&M-GMS PCO Seniority,PRC DELEGATED CO-COMMISSIONING,DUKE MEDICAL CENTRE,24014772,"1,419.29 "
Department of Health,NHS Sheffield CCG,30/09/2018,C&M-GMS Prem Notional Rent,PRC DELEGATED CO-COMMISSIONING,DUKE MEDICAL CENTRE,24014772,"5,721.67 "
Department of Health,NHS Sheffield CCG,30/09/2018,C&M-GMS Prem Rates,PRC DELEGATED CO-COMMISSIONING,DUKE MEDICAL CENTRE,24014772,"1,098.00 "
Department of Health,NHS Sheffield CCG,30/09/2018,C&M-GMS Prem Water Rates,PRC DELEGATED CO-COMMISSIONING,DUKE MEDICAL CENTRE,24014772,278.73 
Department of Health,NHS Sheffield CCG,30/09/2018,C&M-GMS QOF Aspiration,PRC DELEGATED CO-COMMISSIONING,DUKE MEDICAL CENTRE,24014772,"4,948.64 "
Department of Health,NHS Sheffield CCG,30/09/2018,C&M-PMS Contract Value,PRC DELEGATED CO-COMMISSIONING,DUNNINC ROAD SURGERY,23812799,"23,485.97 "
Department of Health,NHS Sheffield CCG,30/09/2018,C&M-PMS DES Extended Hours Access,PRC DELEGATED CO-COMMISSIONING,DUNNINC ROAD SURGERY,23812799,"1,417.40 "
Department of Health,NHS Sheffield CCG,30/09/2018,C&M-PMS PCO Seniority,PRC DELEGATED CO-COMMISSIONING,DUNNINC ROAD SURGERY,23812799,"1,761.29 "
Department of Health,NHS Sheffield CCG,30/09/2018,C&M-PMS Prem Notional Rent,PRC DELEGATED CO-COMMISSIONING,DUNNINC ROAD SURGERY,23812799,"1,664.58 "
Department of Health,NHS Sheffield CCG,30/09/2018,C&M-PMS QOF Aspiration,PRC DELEGATED CO-COMMISSIONING,DUNNINC ROAD SURGERY,23812799,"2,554.49 "
Department of Health,NHS Sheffield CCG,30/09/2018,C&M-PMS Contract Value,PRC DELEGATED CO-COMMISSIONING,DYKES HALL MEDICAL CENTRE,23812800,(244.54)
Department of Health,NHS Sheffield CCG,30/09/2018,C&M-PMS GP Statutory Levy,PRC DELEGATED CO-COMMISSIONING,DYKES HALL MEDICAL CENTRE,23812800,(292.56)
Department of Health,NHS Sheffield CCG,30/09/2018,C&M-PMS Out of Hours Opt Outs,PRC DELEGATED CO-COMMISSIONING,DYKES HALL MEDICAL CENTRE,23812800,"(3,374.44)"
Department of Health,NHS Sheffield CCG,30/09/2018,C&M-PMS Voluntary Levy,PRC DELEGATED CO-COMMISSIONING,DYKES HALL MEDICAL CENTRE,23812800,(48.76)
Department of Health,NHS Sheffield CCG,30/09/2018,C&M-PMS Contract Value,PRC DELEGATED CO-COMMISSIONING,DYKES HALL MEDICAL CENTRE,23812801,"71,888.16 "
Department of Health,NHS Sheffield CCG,30/09/2018,C&M-PMS DES Extended Hours Access,PRC DELEGATED CO-COMMISSIONING,DYKES HALL MEDICAL CENTRE,23812801,"4,625.55 "
Department of Health,NHS Sheffield CCG,30/09/2018,C&M-PMS DES Learn Dsblty Hlth Chk,PRC DELEGATED CO-COMMISSIONING,DYKES HALL MEDICAL CENTRE,23812801,"1,680.00 "
Department of Health,NHS Sheffield CCG,30/09/2018,C&M-PMS Out of Hours Opt Outs,PRC DELEGATED CO-COMMISSIONING,DYKES HALL MEDICAL CENTRE,23812801,12.02 
Department of Health,NHS Sheffield CCG,30/09/2018,C&M-PMS PCO Other,PRC DELEGATED CO-COMMISSIONING,DYKES HALL MEDICAL CENTRE,23812801,"6,042.00 "
Department of Health,NHS Sheffield CCG,30/09/2018,C&M-PMS PCO Seniority,PRC DELEGATED CO-COMMISSIONING,DYKES HALL MEDICAL CENTRE,23812801,"2,057.56 "
Department of Health,NHS Sheffield CCG,30/09/2018,C&M-PMS Prem Notional Rent,PRC DELEGATED CO-COMMISSIONING,DYKES HALL MEDICAL CENTRE,23812801,"5,377.08 "
Department of Health,NHS Sheffield CCG,30/09/2018,C&M-PMS Prem Rates,PRC DELEGATED CO-COMMISSIONING,DYKES HALL MEDICAL CENTRE,23812801,"6,232.65 "
Department of Health,NHS Sheffield CCG,30/09/2018,C&M-PMS Prem Water Rates,PRC DELEGATED CO-COMMISSIONING,DYKES HALL MEDICAL CENTRE,23812801,"1,736.78 "
Department of Health,NHS Sheffield CCG,30/09/2018,C&M-PMS QOF Aspiration,PRC DELEGATED CO-COMMISSIONING,DYKES HALL MEDICAL CENTRE,23812801,"8,079.17 "
Department of Health,NHS Sheffield CCG,30/09/2018,C&M-PMS Contract Value,PRC DELEGATED CO-COMMISSIONING,EAST BANK MEDICAL CENTRE,23812803,"46,157.57 "
Department of Health,NHS Sheffield CCG,30/09/2018,C&M-PMS DES Extended Hours Access,PRC DELEGATED CO-COMMISSIONING,EAST BANK MEDICAL CENTRE,23812803,"2,664.75 "
Department of Health,NHS Sheffield CCG,30/09/2018,C&M-PMS PCO Locum Adop/Pat/Mat,PRC DELEGATED CO-COMMISSIONING,EAST BANK MEDICAL CENTRE,23812803,"5,666.66 "
Department of Health,NHS Sheffield CCG,30/09/2018,C&M-PMS PCO Seniority,PRC DELEGATED CO-COMMISSIONING,EAST BANK MEDICAL CENTRE,23812803,"1,132.19 "
Department of Health,NHS Sheffield CCG,30/09/2018,C&M-PMS Prem Notional Rent,PRC DELEGATED CO-COMMISSIONING,EAST BANK MEDICAL CENTRE,23812803,"10,583.34 "
Department of Health,NHS Sheffield CCG,30/09/2018,C&M-PMS Prem Rates,PRC DELEGATED CO-COMMISSIONING,EAST BANK MEDICAL CENTRE,23812803,"2,729.00 "
Department of Health,NHS Sheffield CCG,30/09/2018,C&M-PMS QOF Aspiration,PRC DELEGATED CO-COMMISSIONING,EAST BANK MEDICAL CENTRE,23812803,"4,881.64 "
Department of Health,NHS Sheffield CCG,30/09/2018,C&M-GMS Cost of Drugs -Prescribing,LOCAL ENHANCED SERVICES,ECCLESFIELD GROUP PRACTICE,24014764,"2,303.40 "
Department of Health,NHS Sheffield CCG,30/09/2018,C&M-GMS DES Extended Hours Access,PRC DELEGATED CO-COMMISSIONING,ECCLESFIELD GROUP PRACTICE,24014764,"3,883.60 "
Department of Health,NHS Sheffield CCG,30/09/2018,C&M-GMS DES Learn Dsblty Hlth Chk,PRC DELEGATED CO-COMMISSIONING,ECCLESFIELD GROUP PRACTICE,24014764,"1,120.00 "
Department of Health,NHS Sheffield CCG,30/09/2018,C&M-GMS Global Sum,PRC DELEGATED CO-COMMISSIONING,ECCLESFIELD GROUP PRACTICE,24014764,"66,062.78 "
Department of Health,NHS Sheffield CCG,30/09/2018,C&M-GMS PCO Other,PRC DELEGATED CO-COMMISSIONING,ECCLESFIELD GROUP PRACTICE,24014764,572.78 
Department of Health,NHS Sheffield CCG,30/09/2018,C&M-GMS PCO Seniority,PRC DELEGATED CO-COMMISSIONING,ECCLESFIELD GROUP PRACTICE,24014764,"1,677.82 "
Department of Health,NHS Sheffield CCG,30/09/2018,C&M-GMS Prem Notional Rent,PRC DELEGATED CO-COMMISSIONING,ECCLESFIELD GROUP PRACTICE,24014764,"6,805.42 "
Department of Health,NHS Sheffield CCG,30/09/2018,C&M-GMS Prem Rates,PRC DELEGATED CO-COMMISSIONING,ECCLESFIELD GROUP PRACTICE,24014764,"1,278.00 "
Department of Health,NHS Sheffield CCG,30/09/2018,C&M-GMS Prem Water Rates,PRC DELEGATED CO-COMMISSIONING,ECCLESFIELD GROUP PRACTICE,24014764,643.14 
Department of Health,NHS Sheffield CCG,30/09/2018,C&M-GMS Prof Fees Prescribing,PRC DELEGATED CO-COMMISSIONING,ECCLESFIELD GROUP PRACTICE,24014764,246.10 
Department of Health,NHS Sheffield CCG,30/09/2018,C&M-GMS QOF Aspiration,PRC DELEGATED CO-COMMISSIONING,ECCLESFIELD GROUP PRACTICE,24014764,"8,811.44 "
Department of Health,NHS Sheffield CCG,30/09/2018,C&M-GMS Cost of Drugs -Prescribing,LOCAL ENHANCED SERVICES,ELM LANE SURGERY,24014769,"2,356.28 "
Department of Health,NHS Sheffield CCG,30/09/2018,C&M-GMS Global Sum,PRC DELEGATED CO-COMMISSIONING,ELM LANE SURGERY,24014769,"38,806.41 "
Department of Health,NHS Sheffield CCG,30/09/2018,C&M-GMS MPIG Correction Factor,PRC DELEGATED CO-COMMISSIONING,ELM LANE SURGERY,24014769,838.53 
Department of Health,NHS Sheffield CCG,30/09/2018,C&M-GMS PCO Other,PRC DELEGATED CO-COMMISSIONING,ELM LANE SURGERY,24014769,"3,476.00 "
Department of Health,NHS Sheffield CCG,30/09/2018,C&M-GMS PCO Seniority,PRC DELEGATED CO-COMMISSIONING,ELM LANE SURGERY,24014769,"1,196.47 "
Department of Health,NHS Sheffield CCG,30/09/2018,C&M-GMS Prem Notional Rent,PRC DELEGATED CO-COMMISSIONING,ELM LANE SURGERY,24014769,"5,168.50 "
Department of Health,NHS Sheffield CCG,30/09/2018,C&M-GMS Prem Rates,PRC DELEGATED CO-COMMISSIONING,ELM LANE SURGERY,24014769,"1,340.00 "
Department of Health,NHS Sheffield CCG,30/09/2018,C&M-GMS Prof Fees Prescribing,PRC DELEGATED CO-COMMISSIONING,ELM LANE SURGERY,24014769,200.10 
Department of Health,NHS Sheffield CCG,30/09/2018,C&M-GMS QOF Aspiration,PRC DELEGATED CO-COMMISSIONING,ELM LANE SURGERY,24014769,"4,467.14 "
Department of Health,NHS Sheffield CCG,30/09/2018,Cont Care-Physical Disab (<65),CHC ADULT FULLY FUNDED,FAIRWINDS HEALTH CARE LTD,23866436,"37,939.03 "
Department of Health,NHS Sheffield CCG,30/09/2018,C&M-PMS Contract Value,PRC DELEGATED CO-COMMISSIONING,FALKLAND HOUSE,23812807,"25,471.58 "
Department of Health,NHS Sheffield CCG,30/09/2018,C&M-PMS DES Extended Hours Access,PRC DELEGATED CO-COMMISSIONING,FALKLAND HOUSE,23812807,"1,885.75 "
Department of Health,NHS Sheffield CCG,30/09/2018,C&M-PMS DES Learn Dsblty Hlth Chk,PRC DELEGATED CO-COMMISSIONING,FALKLAND HOUSE,23812807,700.00 
Department of Health,NHS Sheffield CCG,30/09/2018,C&M-PMS Out of Hours Opt Outs,PRC DELEGATED CO-COMMISSIONING,FALKLAND HOUSE,23812807,7.18 
Department of Health,NHS Sheffield CCG,30/09/2018,C&M-PMS PCO Other,PRC DELEGATED CO-COMMISSIONING,FALKLAND HOUSE,23812807,307.67 
Department of Health,NHS Sheffield CCG,30/09/2018,C&M-PMS PCO Seniority,PRC DELEGATED CO-COMMISSIONING,FALKLAND HOUSE,23812807,934.99 
Department of Health,NHS Sheffield CCG,30/09/2018,C&M-PMS Prem Notional Rent,PRC DELEGATED CO-COMMISSIONING,FALKLAND HOUSE,23812807,"1,866.67 "
Department of Health,NHS Sheffield CCG,30/09/2018,C&M-PMS Prem Rates,PRC DELEGATED CO-COMMISSIONING,FALKLAND HOUSE,23812807,756.00 
Department of Health,NHS Sheffield CCG,30/09/2018,C&M-PMS QOF Aspiration,PRC DELEGATED CO-COMMISSIONING,FALKLAND HOUSE,23812807,"2,902.49 "
Department of Health,NHS Sheffield CCG,30/09/2018,C&M-GMS Cost of Drugs -Prescribing,LOCAL ENHANCED SERVICES,FAR LANE MEDICAL CENTRE,24035267,312.53 
Department of Health,NHS Sheffield CCG,30/09/2018,C&M-GMS Global Sum,PRC DELEGATED CO-COMMISSIONING,FAR LANE MEDICAL CENTRE,24035267,"54,159.55 "
Department of Health,NHS Sheffield CCG,30/09/2018,C&M-GMS PCO Locum Adop/Pat/Mat,PRC DELEGATED CO-COMMISSIONING,FAR LANE MEDICAL CENTRE,24035267,"1,634.61 "
Department of Health,NHS Sheffield CCG,30/09/2018,C&M-GMS PCO Other,PRC DELEGATED CO-COMMISSIONING,FAR LANE MEDICAL CENTRE,24035267,518.33 
Department of Health,NHS Sheffield CCG,30/09/2018,C&M-GMS PCO Seniority,PRC DELEGATED CO-COMMISSIONING,FAR LANE MEDICAL CENTRE,24035267,"4,125.64 "
Department of Health,NHS Sheffield CCG,30/09/2018,C&M-GMS Prem Notional Rent,PRC DELEGATED CO-COMMISSIONING,FAR LANE MEDICAL CENTRE,24035267,"3,462.50 "
Department of Health,NHS Sheffield CCG,30/09/2018,C&M-GMS Prem Rates,PRC DELEGATED CO-COMMISSIONING,FAR LANE MEDICAL CENTRE,24035267,"1,114.00 "
Department of Health,NHS Sheffield CCG,30/09/2018,C&M-GMS Prof Fees Prescribing,PRC DELEGATED CO-COMMISSIONING,FAR LANE MEDICAL CENTRE,24035267,133.40 
Department of Health,NHS Sheffield CCG,30/09/2018,C&M-GMS QOF Aspiration,PRC DELEGATED CO-COMMISSIONING,FAR LANE MEDICAL CENTRE,24035267,"5,824.23 "
Department of Health,NHS Sheffield CCG,30/09/2018,C&M-PMS Contract Value,PRC DELEGATED CO-COMMISSIONING,FIRTH PARK SURGERY,23812805,"72,484.52 "
Department of Health,NHS Sheffield CCG,30/09/2018,C&M-PMS DES Extended Hours Access,PRC DELEGATED CO-COMMISSIONING,FIRTH PARK SURGERY,23812805,"4,694.43 "
Department of Health,NHS Sheffield CCG,30/09/2018,C&M-PMS DES Learn Dsblty Hlth Chk,PRC DELEGATED CO-COMMISSIONING,FIRTH PARK SURGERY,23812805,"2,100.00 "
Department of Health,NHS Sheffield CCG,30/09/2018,C&M-PMS PCO Locum Adop/Pat/Mat,PRC DELEGATED CO-COMMISSIONING,FIRTH PARK SURGERY,23812805,"5,590.62 "
Department of Health,NHS Sheffield CCG,30/09/2018,C&M-PMS PCO Seniority,PRC DELEGATED CO-COMMISSIONING,FIRTH PARK SURGERY,23812805,"2,401.45 "
Department of Health,NHS Sheffield CCG,30/09/2018,C&M-PMS Prem Notional Rent,PRC DELEGATED CO-COMMISSIONING,FIRTH PARK SURGERY,23812805,"4,500.00 "
Department of Health,NHS Sheffield CCG,30/09/2018,C&M-PMS Prem Rates,PRC DELEGATED CO-COMMISSIONING,FIRTH PARK SURGERY,23812805,"1,330.00 "
Department of Health,NHS Sheffield CCG,30/09/2018,C&M-PMS QOF Aspiration,PRC DELEGATED CO-COMMISSIONING,FIRTH PARK SURGERY,23812805,"7,359.15 "
Department of Health,NHS Sheffield CCG,30/09/2018,C&M-GMS Cost of Drugs -Prescribing,LOCAL ENHANCED SERVICES,FLOWERS HEALTH CENTRE,24035272,"1,455.71 "
Department of Health,NHS Sheffield CCG,30/09/2018,C&M-GMS Global Sum,PRC DELEGATED CO-COMMISSIONING,FLOWERS HEALTH CENTRE,24035272,"35,356.34 "
Department of Health,NHS Sheffield CCG,30/09/2018,C&M-GMS MPIG Correction Factor,PRC DELEGATED CO-COMMISSIONING,FLOWERS HEALTH CENTRE,24035272,"1,476.31 "
Department of Health,NHS Sheffield CCG,30/09/2018,C&M-GMS PCO Seniority,PRC DELEGATED CO-COMMISSIONING,FLOWERS HEALTH CENTRE,24035272,"1,218.75 "
Department of Health,NHS Sheffield CCG,30/09/2018,C&M-GMS Prem Healthcentre Rent,PRC DELEGATED CO-COMMISSIONING,FLOWERS HEALTH CENTRE,24035272,"33,513.30 "
Department of Health,NHS Sheffield CCG,30/09/2018,C&M-GMS Prof Fees Prescribing,PRC DELEGATED CO-COMMISSIONING,FLOWERS HEALTH CENTRE,24035272,216.20 
Department of Health,NHS Sheffield CCG,30/09/2018,C&M-GMS QOF Aspiration,PRC DELEGATED CO-COMMISSIONING,FLOWERS HEALTH CENTRE,24035272,"4,241.34 "
Department of Health,NHS Sheffield CCG,30/09/2018,Cont Care-Physical Disab (<65),CHC ADULT FULLY FUNDED,FOUR SEASONS HEALTH CARE LTD,23866462,"38,358.68 "
Department of Health,NHS Sheffield CCG,30/09/2018,C&M-PMS Contract Value,PRC DELEGATED CO-COMMISSIONING,FOXHILL MEDICAL CENTRE SHEFFIELD,23812890,"51,321.83 "
Department of Health,NHS Sheffield CCG,30/09/2018,C&M-PMS DES Extended Hours Access,PRC DELEGATED CO-COMMISSIONING,FOXHILL MEDICAL CENTRE SHEFFIELD,23812890,"2,940.25 "
Department of Health,NHS Sheffield CCG,30/09/2018,C&M-PMS PCO Other,PRC DELEGATED CO-COMMISSIONING,FOXHILL MEDICAL CENTRE SHEFFIELD,23812890,446.84 
Department of Health,NHS Sheffield CCG,30/09/2018,C&M-PMS PCO Seniority,PRC DELEGATED CO-COMMISSIONING,FOXHILL MEDICAL CENTRE SHEFFIELD,23812890,"3,255.34 "
Department of Health,NHS Sheffield CCG,30/09/2018,C&M-PMS Prem Healthcentre Rent,PRC DELEGATED CO-COMMISSIONING,FOXHILL MEDICAL CENTRE SHEFFIELD,23812890,"46,751.16 "
Department of Health,NHS Sheffield CCG,30/09/2018,C&M-PMS QOF Aspiration,PRC DELEGATED CO-COMMISSIONING,FOXHILL MEDICAL CENTRE SHEFFIELD,23812890,"5,580.51 "
Department of Health,NHS Sheffield CCG,30/09/2018,C&M-PMS Contract Value,PRC DELEGATED CO-COMMISSIONING,GLEADLESS MEDICAL CENTRE,23812809,"68,488.53 "
Department of Health,NHS Sheffield CCG,30/09/2018,C&M-PMS Out of Hours Opt Outs,PRC DELEGATED CO-COMMISSIONING,GLEADLESS MEDICAL CENTRE,23812809,16.70 
Department of Health,NHS Sheffield CCG,30/09/2018,C&M-PMS PCO Other,PRC DELEGATED CO-COMMISSIONING,GLEADLESS MEDICAL CENTRE,23812809,619.11 
Department of Health,NHS Sheffield CCG,30/09/2018,C&M-PMS PCO Seniority,PRC DELEGATED CO-COMMISSIONING,GLEADLESS MEDICAL CENTRE,23812809,"3,387.77 "
Department of Health,NHS Sheffield CCG,30/09/2018,C&M-PMS Prem Notional Rent,PRC DELEGATED CO-COMMISSIONING,GLEADLESS MEDICAL CENTRE,23812809,"6,750.00 "
Department of Health,NHS Sheffield CCG,30/09/2018,C&M-PMS Prem Rates,PRC DELEGATED CO-COMMISSIONING,GLEADLESS MEDICAL CENTRE,23812809,"1,564.00 "
Department of Health,NHS Sheffield CCG,30/09/2018,C&M-PMS QOF Aspiration,PRC DELEGATED CO-COMMISSIONING,GLEADLESS MEDICAL CENTRE,23812809,"7,712.98 "
Department of Health,NHS Sheffield CCG,30/09/2018,C&M-GMS Cost of Drugs -Prescribing,LOCAL ENHANCED SERVICES,GRENOSIDE SURGERY,24035269,"1,814.88 "
Department of Health,NHS Sheffield CCG,30/09/2018,C&M-GMS DES Extended Hours Access,PRC DELEGATED CO-COMMISSIONING,GRENOSIDE SURGERY,24035269,"3,512.15 "
Department of Health,NHS Sheffield CCG,30/09/2018,C&M-GMS Global Sum,PRC DELEGATED CO-COMMISSIONING,GRENOSIDE SURGERY,24035269,"56,233.78 "
Department of Health,NHS Sheffield CCG,30/09/2018,C&M-GMS PCO Locum Adop/Pat/Mat,PRC DELEGATED CO-COMMISSIONING,GRENOSIDE SURGERY,24035269,"4,548.25 "
Department of Health,NHS Sheffield CCG,30/09/2018,C&M-GMS PCO Seniority,PRC DELEGATED CO-COMMISSIONING,GRENOSIDE SURGERY,24035269,"1,629.66 "
Department of Health,NHS Sheffield CCG,30/09/2018,C&M-GMS Prem Notional Rent,PRC DELEGATED CO-COMMISSIONING,GRENOSIDE SURGERY,24035269,"8,110.42 "
Department of Health,NHS Sheffield CCG,30/09/2018,C&M-GMS Prem Rates,PRC DELEGATED CO-COMMISSIONING,GRENOSIDE SURGERY,24035269,"1,916.00 "
Department of Health,NHS Sheffield CCG,30/09/2018,C&M-GMS Prof Fees Prescribing,PRC DELEGATED CO-COMMISSIONING,GRENOSIDE SURGERY,24035269,117.30 
Department of Health,NHS Sheffield CCG,30/09/2018,C&M-GMS QOF Aspiration,PRC DELEGATED CO-COMMISSIONING,GRENOSIDE SURGERY,24035269,"5,655.38 "
Department of Health,NHS Sheffield CCG,30/09/2018,C&M-GMS Cost of Drugs -Prescribing,LOCAL ENHANCED SERVICES,GREYSTONES MEDICAL CENTRE,24014798,580.90 
Department of Health,NHS Sheffield CCG,30/09/2018,C&M-GMS DES Extended Hours Access,PRC DELEGATED CO-COMMISSIONING,GREYSTONES MEDICAL CENTRE,24014798,"1,772.70 "
Department of Health,NHS Sheffield CCG,30/09/2018,C&M-GMS Global Sum,PRC DELEGATED CO-COMMISSIONING,GREYSTONES MEDICAL CENTRE,24014798,"19,111.94 "
Department of Health,NHS Sheffield CCG,30/09/2018,C&M-GMS MPIG Correction Factor,PRC DELEGATED CO-COMMISSIONING,GREYSTONES MEDICAL CENTRE,24014798,"1,104.46 "
Department of Health,NHS Sheffield CCG,30/09/2018,C&M-GMS PCO Other,PRC DELEGATED CO-COMMISSIONING,GREYSTONES MEDICAL CENTRE,24014798,292.44 
Department of Health,NHS Sheffield CCG,30/09/2018,C&M-GMS PCO Seniority,PRC DELEGATED CO-COMMISSIONING,GREYSTONES MEDICAL CENTRE,24014798,516.08 
Department of Health,NHS Sheffield CCG,30/09/2018,C&M-GMS Prem Notional Rent,PRC DELEGATED CO-COMMISSIONING,GREYSTONES MEDICAL CENTRE,24014798,"2,885.42 "
Department of Health,NHS Sheffield CCG,30/09/2018,C&M-GMS Prem Rates,PRC DELEGATED CO-COMMISSIONING,GREYSTONES MEDICAL CENTRE,24014798,538.00 
Department of Health,NHS Sheffield CCG,30/09/2018,C&M-GMS Prof Fees Prescribing,PRC DELEGATED CO-COMMISSIONING,GREYSTONES MEDICAL CENTRE,24014798,92.00 
Department of Health,NHS Sheffield CCG,30/09/2018,C&M-GMS QOF Aspiration,PRC DELEGATED CO-COMMISSIONING,GREYSTONES MEDICAL CENTRE,24014798,"2,246.27 "
Department of Health,NHS Sheffield CCG,30/09/2018,C&M-PMS Contract Value,PRC DELEGATED CO-COMMISSIONING,HACKENTHORPE MEDICAL CENTRE,23812811,"47,689.06 "
Department of Health,NHS Sheffield CCG,30/09/2018,C&M-PMS DES Extended Hours Access,PRC DELEGATED CO-COMMISSIONING,HACKENTHORPE MEDICAL CENTRE,23812811,"3,189.63 "
Department of Health,NHS Sheffield CCG,30/09/2018,C&M-PMS DES Learn Dsblty Hlth Chk,PRC DELEGATED CO-COMMISSIONING,HACKENTHORPE MEDICAL CENTRE,23812811,420.00 
Department of Health,NHS Sheffield CCG,30/09/2018,C&M-PMS PCO Other,PRC DELEGATED CO-COMMISSIONING,HACKENTHORPE MEDICAL CENTRE,23812811,480.78 
Department of Health,NHS Sheffield CCG,30/09/2018,C&M-PMS PCO Seniority,PRC DELEGATED CO-COMMISSIONING,HACKENTHORPE MEDICAL CENTRE,23812811,"2,646.75 "
Department of Health,NHS Sheffield CCG,30/09/2018,C&M-PMS Prem Notional Rent,PRC DELEGATED CO-COMMISSIONING,HACKENTHORPE MEDICAL CENTRE,23812811,"4,981.25 "
Department of Health,NHS Sheffield CCG,30/09/2018,C&M-PMS Prem Rates,PRC DELEGATED CO-COMMISSIONING,HACKENTHORPE MEDICAL CENTRE,23812811,"1,196.00 "
Department of Health,NHS Sheffield CCG,30/09/2018,C&M-PMS QOF Aspiration,PRC DELEGATED CO-COMMISSIONING,HACKENTHORPE MEDICAL CENTRE,23812811,"6,346.88 "
Department of Health,NHS Sheffield CCG,30/09/2018,C&M-GMS Cost of Drugs -Prescribing,LOCAL ENHANCED SERVICES,HANDSWORTH MEDICAL PRACTICE SHEFFIELD,24014793,799.09 
Department of Health,NHS Sheffield CCG,30/09/2018,C&M-GMS DES Extended Hours Access,PRC DELEGATED CO-COMMISSIONING,HANDSWORTH MEDICAL PRACTICE SHEFFIELD,24014793,"4,678.75 "
Department of Health,NHS Sheffield CCG,30/09/2018,C&M-GMS DES Learn Dsblty Hlth Chk,PRC DELEGATED CO-COMMISSIONING,HANDSWORTH MEDICAL PRACTICE SHEFFIELD,24014793,"2,100.00 "
Department of Health,NHS Sheffield CCG,30/09/2018,C&M-GMS DES Minor Surgery,PRC DELEGATED CO-COMMISSIONING,HANDSWORTH MEDICAL PRACTICE SHEFFIELD,24014793,640.00 
Department of Health,NHS Sheffield CCG,30/09/2018,C&M-GMS Global Sum,PRC DELEGATED CO-COMMISSIONING,HANDSWORTH MEDICAL PRACTICE SHEFFIELD,24014793,"73,740.48 "
Department of Health,NHS Sheffield CCG,30/09/2018,C&M-GMS PCO Seniority,PRC DELEGATED CO-COMMISSIONING,HANDSWORTH MEDICAL PRACTICE SHEFFIELD,24014793,"1,838.80 "
Department of Health,NHS Sheffield CCG,30/09/2018,C&M-GMS Prem Notional Rent,PRC DELEGATED CO-COMMISSIONING,HANDSWORTH MEDICAL PRACTICE SHEFFIELD,24014793,"3,321.66 "
Department of Health,NHS Sheffield CCG,30/09/2018,C&M-GMS Prof Fees Prescribing,PRC DELEGATED CO-COMMISSIONING,HANDSWORTH MEDICAL PRACTICE SHEFFIELD,24014793,211.60 
Department of Health,NHS Sheffield CCG,30/09/2018,C&M-GMS QOF Aspiration,PRC DELEGATED CO-COMMISSIONING,HANDSWORTH MEDICAL PRACTICE SHEFFIELD,24014793,"7,379.76 "
Department of Health,NHS Sheffield CCG,30/09/2018,C&M-GMS DES Extended Hours Access,PRC DELEGATED CO-COMMISSIONING,HAROLD STREET MEDICAL CENTRE,24014788,609.43 
Department of Health,NHS Sheffield CCG,30/09/2018,C&M-GMS Global Sum,PRC DELEGATED CO-COMMISSIONING,HAROLD STREET MEDICAL CENTRE,24014788,"22,106.06 "
Department of Health,NHS Sheffield CCG,30/09/2018,C&M-GMS PCO Other,PRC DELEGATED CO-COMMISSIONING,HAROLD STREET MEDICAL CENTRE,24014788,138.11 
Department of Health,NHS Sheffield CCG,30/09/2018,C&M-GMS PCO Seniority,PRC DELEGATED CO-COMMISSIONING,HAROLD STREET MEDICAL CENTRE,24014788,"1,132.19 "
Department of Health,NHS Sheffield CCG,30/09/2018,C&M-GMS Prem Notional Rent,PRC DELEGATED CO-COMMISSIONING,HAROLD STREET MEDICAL CENTRE,24014788,"4,675.00 "
Department of Health,NHS Sheffield CCG,30/09/2018,C&M-GMS QOF Aspiration,PRC DELEGATED CO-COMMISSIONING,HAROLD STREET MEDICAL CENTRE,24014788,"2,464.80 "
Department of Health,NHS Sheffield CCG,30/09/2018,Cont Care-Physical Disab (<65),CHC ADULT FULLY FUNDED,HC ONE LTD,23866404,"25,134.59 "
Department of Health,NHS Sheffield CCG,30/09/2018,C&M-GMS Cost of Drugs -Prescribing,LOCAL ENHANCED SERVICES,HEALTH CARE SURGERY,24014811,695.84 
Department of Health,NHS Sheffield CCG,30/09/2018,C&M-GMS DES Extended Hours Access,PRC DELEGATED CO-COMMISSIONING,HEALTH CARE SURGERY,24014811,"2,388.78 "
Department of Health,NHS Sheffield CCG,30/09/2018,C&M-GMS Global Sum,PRC DELEGATED CO-COMMISSIONING,HEALTH CARE SURGERY,24014811,"37,619.47 "
Department of Health,NHS Sheffield CCG,30/09/2018,C&M-GMS MPIG Correction Factor,PRC DELEGATED CO-COMMISSIONING,HEALTH CARE SURGERY,24014811,780.02 
Department of Health,NHS Sheffield CCG,30/09/2018,C&M-GMS PCO Locum Adop/Pat/Mat,PRC DELEGATED CO-COMMISSIONING,HEALTH CARE SURGERY,24014811,"9,521.31 "
Department of Health,NHS Sheffield CCG,30/09/2018,C&M-GMS PCO Other,PRC DELEGATED CO-COMMISSIONING,HEALTH CARE SURGERY,24014811,373.85 
Department of Health,NHS Sheffield CCG,30/09/2018,C&M-GMS PCO Seniority,PRC DELEGATED CO-COMMISSIONING,HEALTH CARE SURGERY,24014811,516.08 
Department of Health,NHS Sheffield CCG,30/09/2018,C&M-GMS Prem Notional Rent,PRC DELEGATED CO-COMMISSIONING,HEALTH CARE SURGERY,24014811,"3,862.50 "
Department of Health,NHS Sheffield CCG,30/09/2018,C&M-GMS Prem Rates,PRC DELEGATED CO-COMMISSIONING,HEALTH CARE SURGERY,24014811,574.00 
Department of Health,NHS Sheffield CCG,30/09/2018,C&M-GMS Prof Fees Prescribing,PRC DELEGATED CO-COMMISSIONING,HEALTH CARE SURGERY,24014811,121.90 
Department of Health,NHS Sheffield CCG,30/09/2018,C&M-GMS QOF Aspiration,PRC DELEGATED CO-COMMISSIONING,HEALTH CARE SURGERY,24014811,"3,944.28 "
Department of Health,NHS Sheffield CCG,30/09/2018,C&M-GMS Cost of Drugs -Prescribing,LOCAL ENHANCED SERVICES,HEELEY GREEN SURGERY,24014802,232.07 
Department of Health,NHS Sheffield CCG,30/09/2018,C&M-GMS DES Extended Hours Access,PRC DELEGATED CO-COMMISSIONING,HEELEY GREEN SURGERY,24014802,"2,796.33 "
Department of Health,NHS Sheffield CCG,30/09/2018,C&M-GMS Global Sum,PRC DELEGATED CO-COMMISSIONING,HEELEY GREEN SURGERY,24014802,"41,955.48 "
Department of Health,NHS Sheffield CCG,30/09/2018,C&M-GMS MPIG Correction Factor,PRC DELEGATED CO-COMMISSIONING,HEELEY GREEN SURGERY,24014802,376.20 
Department of Health,NHS Sheffield CCG,30/09/2018,C&M-GMS PCO Seniority,PRC DELEGATED CO-COMMISSIONING,HEELEY GREEN SURGERY,24014802,757.89 
Department of Health,NHS Sheffield CCG,30/09/2018,C&M-GMS Prem Notional Rent,PRC DELEGATED CO-COMMISSIONING,HEELEY GREEN SURGERY,24014802,"3,254.17 "
Department of Health,NHS Sheffield CCG,30/09/2018,C&M-GMS Prof Fees Prescribing,PRC DELEGATED CO-COMMISSIONING,HEELEY GREEN SURGERY,24014802,85.10 
Department of Health,NHS Sheffield CCG,30/09/2018,C&M-GMS QOF Aspiration,PRC DELEGATED CO-COMMISSIONING,HEELEY GREEN SURGERY,24014802,"4,672.20 "
Department of Health,NHS Sheffield CCG,30/09/2018,C&M-GMS Cost of Drugs -Prescribing,LOCAL ENHANCED SERVICES,HOLLIES MEDICAL CENTRE,24014806,"1,579.18 "
Department of Health,NHS Sheffield CCG,30/09/2018,C&M-GMS DES Extended Hours Access,PRC DELEGATED CO-COMMISSIONING,HOLLIES MEDICAL CENTRE,24014806,"4,291.63 "
Department of Health,NHS Sheffield CCG,30/09/2018,C&M-GMS DES Minor Surgery,PRC DELEGATED CO-COMMISSIONING,HOLLIES MEDICAL CENTRE,24014806,"1,360.00 "
Department of Health,NHS Sheffield CCG,30/09/2018,C&M-GMS Global Sum,PRC DELEGATED CO-COMMISSIONING,HOLLIES MEDICAL CENTRE,24014806,"56,628.54 "
Department of Health,NHS Sheffield CCG,30/09/2018,C&M-GMS MPIG Correction Factor,PRC DELEGATED CO-COMMISSIONING,HOLLIES MEDICAL CENTRE,24014806,"1,452.73 "
Department of Health,NHS Sheffield CCG,30/09/2018,C&M-GMS PCO Other,PRC DELEGATED CO-COMMISSIONING,HOLLIES MEDICAL CENTRE,24014806,623.72 
Department of Health,NHS Sheffield CCG,30/09/2018,C&M-GMS PCO Seniority,PRC DELEGATED CO-COMMISSIONING,HOLLIES MEDICAL CENTRE,24014806,"3,451.29 "
Department of Health,NHS Sheffield CCG,30/09/2018,C&M-GMS Prem Notional Rent,PRC DELEGATED CO-COMMISSIONING,HOLLIES MEDICAL CENTRE,24014806,"3,229.17 "
Department of Health,NHS Sheffield CCG,30/09/2018,C&M-GMS Prem Rates,PRC DELEGATED CO-COMMISSIONING,HOLLIES MEDICAL CENTRE,24014806,"1,224.00 "
Department of Health,NHS Sheffield CCG,30/09/2018,C&M-GMS Prof Fees Prescribing,PRC DELEGATED CO-COMMISSIONING,HOLLIES MEDICAL CENTRE,24014806,98.90 
Department of Health,NHS Sheffield CCG,30/09/2018,C&M-GMS QOF Aspiration,PRC DELEGATED CO-COMMISSIONING,HOLLIES MEDICAL CENTRE,24014806,"6,440.45 "
Department of Health,NHS Sheffield CCG,30/09/2018,Cont Care-Physical Disab (<65),CHC ADULT FULLY FUNDED,HORIZON CARE HOMES LTD,23866753,"44,115.15 "
Department of Health,NHS Sheffield CCG,30/09/2018,Cont Care-Physical Disab (<65),CHC ADULT FULLY FUNDED,HORIZON CARE HOMES LTD,23866774,"28,165.53 "
Department of Health,NHS Sheffield CCG,30/09/2018,Cont Care- Prior Year Payments,CHC ADULT FULLY FUNDED,HORIZON CARE HOMES LTD,23866783,"(40,001.44)"
Department of Health,NHS Sheffield CCG,30/09/2018,Cont Care-Physical Disab (65+),CHC ADULT FULLY FUNDED,HORIZON CARE HOMES LTD,24057681,"51,428.57 "
Department of Health,NHS Sheffield CCG,30/09/2018,C&M-PMS Contract Value,PRC DELEGATED CO-COMMISSIONING,JAUNTY SPRINGS HEALTH CENTRE,23812813,"29,438.69 "
Department of Health,NHS Sheffield CCG,30/09/2018,C&M-PMS DES Extended Hours Access,PRC DELEGATED CO-COMMISSIONING,JAUNTY SPRINGS HEALTH CENTRE,23812813,"1,725.20 "
Department of Health,NHS Sheffield CCG,30/09/2018,C&M-PMS DES Learn Dsblty Hlth Chk,PRC DELEGATED CO-COMMISSIONING,JAUNTY SPRINGS HEALTH CENTRE,23812813,140.00 
Department of Health,NHS Sheffield CCG,30/09/2018,C&M-PMS PCO Other,PRC DELEGATED CO-COMMISSIONING,JAUNTY SPRINGS HEALTH CENTRE,23812813,284.89 
Department of Health,NHS Sheffield CCG,30/09/2018,C&M-PMS PCO Seniority,PRC DELEGATED CO-COMMISSIONING,JAUNTY SPRINGS HEALTH CENTRE,23812813,908.56 
Department of Health,NHS Sheffield CCG,30/09/2018,C&M-PMS Prem Notional Rent,PRC DELEGATED CO-COMMISSIONING,JAUNTY SPRINGS HEALTH CENTRE,23812813,"3,208.33 "
Department of Health,NHS Sheffield CCG,30/09/2018,C&M-PMS Prem Rates,PRC DELEGATED CO-COMMISSIONING,JAUNTY SPRINGS HEALTH CENTRE,23812813,631.00 
Department of Health,NHS Sheffield CCG,30/09/2018,C&M-PMS Prem Water Rates,PRC DELEGATED CO-COMMISSIONING,JAUNTY SPRINGS HEALTH CENTRE,23812813,120.58 
Department of Health,NHS Sheffield CCG,30/09/2018,C&M-PMS QOF Aspiration,PRC DELEGATED CO-COMMISSIONING,JAUNTY SPRINGS HEALTH CENTRE,23812813,"3,861.25 "
Department of Health,NHS Sheffield CCG,30/09/2018,C&M-GMS IT Comm Servs -GP Practices,PRIMARY CARE IT,KIER BUSINESS SERVICES LTD,23806029,"103,393.20 "
Department of Health,NHS Sheffield CCG,30/09/2018,FM Computer Contracts,BUSINESS INFORMATICS,KIER BUSINESS SERVICES LTD,23806029,"36,933.60 "
Department of Health,NHS Sheffield CCG,30/09/2018,C&M-GMS LES Translation Fees,INTERPRETING SERVICES,LANGUAGELINE SOLUTIONS,23930578,"37,829.54 "
Department of Health,NHS Sheffield CCG,30/09/2018,C&M-GMS LES Translation Fees,INTERPRETING SERVICES,LANGUAGELINE SOLUTIONS,23930582,"31,140.60 "
Department of Health,NHS Sheffield CCG,30/09/2018,Hcare Srv Rec NHS Trust-Contract Baseline,ACUTE COMMISSIONING,LEEDS TEACHING HOSPITALS NHS TRUST,23854627,"44,759.00 "
Department of Health,NHS Sheffield CCG,30/09/2018,Cont Care-Physical Disab (<65),CHC ADULT FULLY FUNDED,LONGLEY HEALTH CARE LTD,23806044,"96,418.67 "
Department of Health,NHS Sheffield CCG,30/09/2018,Cont Care-Physical Disab (<65),CHC ADULT FULLY FUNDED,LOXLEY HEALTH CARE LTD,23806047,"59,522.36 "
Department of Health,NHS Sheffield CCG,30/09/2018,C&M-PMS Contract Value,PRC DELEGATED CO-COMMISSIONING,MANCHESTER ROAD SURGERY SHEFFIELD,23812819,"31,843.76 "
Department of Health,NHS Sheffield CCG,30/09/2018,C&M-PMS PCO Seniority,PRC DELEGATED CO-COMMISSIONING,MANCHESTER ROAD SURGERY SHEFFIELD,23812819,"1,748.26 "
Department of Health,NHS Sheffield CCG,30/09/2018,C&M-PMS Prem Cost Rent,PRC DELEGATED CO-COMMISSIONING,MANCHESTER ROAD SURGERY SHEFFIELD,23812819,"3,472.17 "
Department of Health,NHS Sheffield CCG,30/09/2018,C&M-PMS Prem Notional Rent,PRC DELEGATED CO-COMMISSIONING,MANCHESTER ROAD SURGERY SHEFFIELD,23812819,442.92 
Department of Health,NHS Sheffield CCG,30/09/2018,C&M-PMS Prem Rates,PRC DELEGATED CO-COMMISSIONING,MANCHESTER ROAD SURGERY SHEFFIELD,23812819,948.00 
Department of Health,NHS Sheffield CCG,30/09/2018,C&M-PMS Prem Water Rates,PRC DELEGATED CO-COMMISSIONING,MANCHESTER ROAD SURGERY SHEFFIELD,23812819,142.31 
Department of Health,NHS Sheffield CCG,30/09/2018,C&M-PMS QOF Aspiration,PRC DELEGATED CO-COMMISSIONING,MANCHESTER ROAD SURGERY SHEFFIELD,23812819,"4,036.85 "
Department of Health,NHS Sheffield CCG,30/09/2018,C&M-PMS Contract Value,PRC DELEGATED CO-COMMISSIONING,MANOR & PARK GROUP PRACTICE,23823389,"75,960.33 "
Department of Health,NHS Sheffield CCG,30/09/2018,C&M-PMS DES Extended Hours Access,PRC DELEGATED CO-COMMISSIONING,MANOR & PARK GROUP PRACTICE,23823389,"2,098.08 "
Department of Health,NHS Sheffield CCG,30/09/2018,C&M-PMS Out of Hours Opt Outs,PRC DELEGATED CO-COMMISSIONING,MANOR & PARK GROUP PRACTICE,23823389,9.16 
Department of Health,NHS Sheffield CCG,30/09/2018,C&M-PMS Prem Notional Rent,PRC DELEGATED CO-COMMISSIONING,MANOR & PARK GROUP PRACTICE,23823389,"9,050.00 "
Department of Health,NHS Sheffield CCG,30/09/2018,C&M-PMS Prem Rates,PRC DELEGATED CO-COMMISSIONING,MANOR & PARK GROUP PRACTICE,23823389,975.00 
Department of Health,NHS Sheffield CCG,30/09/2018,C&M-PMS QOF Aspiration,PRC DELEGATED CO-COMMISSIONING,MANOR & PARK GROUP PRACTICE,23823389,"7,862.89 "
Department of Health,NHS Sheffield CCG,30/09/2018,C&M-GMS Cost of Drugs -Prescribing,LOCAL ENHANCED SERVICES,MATHEWS PRACTICE,24014827,313.03 
Department of Health,NHS Sheffield CCG,30/09/2018,C&M-GMS Global Sum,PRC DELEGATED CO-COMMISSIONING,MATHEWS PRACTICE,24014827,"63,473.79 "
Department of Health,NHS Sheffield CCG,30/09/2018,C&M-GMS MPIG Correction Factor,PRC DELEGATED CO-COMMISSIONING,MATHEWS PRACTICE,24014827,598.96 
Department of Health,NHS Sheffield CCG,30/09/2018,C&M-GMS PCO Seniority,PRC DELEGATED CO-COMMISSIONING,MATHEWS PRACTICE,24014827,935.88 
Department of Health,NHS Sheffield CCG,30/09/2018,C&M-GMS Prem Notional Rent,PRC DELEGATED CO-COMMISSIONING,MATHEWS PRACTICE,24014827,"8,660.42 "
Department of Health,NHS Sheffield CCG,30/09/2018,C&M-GMS Prem Rates,PRC DELEGATED CO-COMMISSIONING,MATHEWS PRACTICE,24014827,"1,962.00 "
Department of Health,NHS Sheffield CCG,30/09/2018,C&M-GMS Prof Fees Prescribing,PRC DELEGATED CO-COMMISSIONING,MATHEWS PRACTICE,24014827,156.40 
Department of Health,NHS Sheffield CCG,30/09/2018,C&M-GMS QOF Aspiration,PRC DELEGATED CO-COMMISSIONING,MATHEWS PRACTICE,24014827,"7,748.47 "
Department of Health,NHS Sheffield CCG,30/09/2018,C&M-PMS Contract Value,PRC DELEGATED CO-COMMISSIONING,MEADOWHEAD GROUP PRACTICE,23812816,"76,447.76 "
Department of Health,NHS Sheffield CCG,30/09/2018,C&M-PMS DES Extended Hours Access,PRC DELEGATED CO-COMMISSIONING,MEADOWHEAD GROUP PRACTICE,23812816,"4,673.05 "
Department of Health,NHS Sheffield CCG,30/09/2018,C&M-PMS DES Learn Dsblty Hlth Chk,PRC DELEGATED CO-COMMISSIONING,MEADOWHEAD GROUP PRACTICE,23812816,420.00 
Department of Health,NHS Sheffield CCG,30/09/2018,C&M-PMS Out of Hours Opt Outs,PRC DELEGATED CO-COMMISSIONING,MEADOWHEAD GROUP PRACTICE,23812816,99.42 
Department of Health,NHS Sheffield CCG,30/09/2018,C&M-PMS PCO Locum Adop/Pat/Mat,PRC DELEGATED CO-COMMISSIONING,MEADOWHEAD GROUP PRACTICE,23812816,"6,196.72 "
Department of Health,NHS Sheffield CCG,30/09/2018,C&M-PMS PCO Seniority,PRC DELEGATED CO-COMMISSIONING,MEADOWHEAD GROUP PRACTICE,23812816,"3,944.06 "
Department of Health,NHS Sheffield CCG,30/09/2018,C&M-PMS Prem Cost Rent,PRC DELEGATED CO-COMMISSIONING,MEADOWHEAD GROUP PRACTICE,23812816,"3,647.42 "
Department of Health,NHS Sheffield CCG,30/09/2018,C&M-PMS Prem Notional Rent,PRC DELEGATED CO-COMMISSIONING,MEADOWHEAD GROUP PRACTICE,23812816,"3,358.33 "
Department of Health,NHS Sheffield CCG,30/09/2018,C&M-PMS Prem Rates,PRC DELEGATED CO-COMMISSIONING,MEADOWHEAD GROUP PRACTICE,23812816,"1,788.00 "
Department of Health,NHS Sheffield CCG,30/09/2018,C&M-PMS QOF Aspiration,PRC DELEGATED CO-COMMISSIONING,MEADOWHEAD GROUP PRACTICE,23812816,"9,134.83 "
Department of Health,NHS Sheffield CCG,30/09/2018,C&M-GMS Cost of Drugs -Prescribing,LOCAL ENHANCED SERVICES,MEDICAL CENTRE CRYSTAL PEAKS,24014819,872.80 
Department of Health,NHS Sheffield CCG,30/09/2018,C&M-GMS DES Extended Hours Access,PRC DELEGATED CO-COMMISSIONING,MEDICAL CENTRE CRYSTAL PEAKS,24014819,"3,135.00 "
Department of Health,NHS Sheffield CCG,30/09/2018,C&M-GMS DES Learn Dsblty Hlth Chk,PRC DELEGATED CO-COMMISSIONING,MEDICAL CENTRE CRYSTAL PEAKS,24014819,700.00 
Department of Health,NHS Sheffield CCG,30/09/2018,C&M-GMS Global Sum,PRC DELEGATED CO-COMMISSIONING,MEDICAL CENTRE CRYSTAL PEAKS,24014819,"45,143.30 "
Department of Health,NHS Sheffield CCG,30/09/2018,C&M-GMS MPIG Correction Factor,PRC DELEGATED CO-COMMISSIONING,MEDICAL CENTRE CRYSTAL PEAKS,24014819,"1,131.34 "
Department of Health,NHS Sheffield CCG,30/09/2018,C&M-GMS PCO Other,PRC DELEGATED CO-COMMISSIONING,MEDICAL CENTRE CRYSTAL PEAKS,24014819,474.67 
Department of Health,NHS Sheffield CCG,30/09/2018,C&M-GMS PCO Seniority,PRC DELEGATED CO-COMMISSIONING,MEDICAL CENTRE CRYSTAL PEAKS,24014819,"2,331.13 "
Department of Health,NHS Sheffield CCG,30/09/2018,C&M-GMS Prem Notional Rent,PRC DELEGATED CO-COMMISSIONING,MEDICAL CENTRE CRYSTAL PEAKS,24014819,270.00 
Department of Health,NHS Sheffield CCG,30/09/2018,C&M-GMS Prem Rates,PRC DELEGATED CO-COMMISSIONING,MEDICAL CENTRE CRYSTAL PEAKS,24014819,977.00 
Department of Health,NHS Sheffield CCG,30/09/2018,C&M-GMS Prof Fees Prescribing,PRC DELEGATED CO-COMMISSIONING,MEDICAL CENTRE CRYSTAL PEAKS,24014819,370.30 
Department of Health,NHS Sheffield CCG,30/09/2018,C&M-GMS QOF Aspiration,PRC DELEGATED CO-COMMISSIONING,MEDICAL CENTRE CRYSTAL PEAKS,24014819,"6,363.66 "
Department of Health,NHS Sheffield CCG,30/09/2018,C&M-GMS Cost of Drugs -Prescribing,LOCAL ENHANCED SERVICES,MILL ROAD SURGERY SHEFFIELD,24014833,"1,418.42 "
Department of Health,NHS Sheffield CCG,30/09/2018,C&M-GMS DES Extended Hours Access,PRC DELEGATED CO-COMMISSIONING,MILL ROAD SURGERY SHEFFIELD,24014833,"2,500.88 "
Department of Health,NHS Sheffield CCG,30/09/2018,C&M-GMS DES Learn Dsblty Hlth Chk,PRC DELEGATED CO-COMMISSIONING,MILL ROAD SURGERY SHEFFIELD,24014833,280.00 
Department of Health,NHS Sheffield CCG,30/09/2018,C&M-GMS Global Sum,PRC DELEGATED CO-COMMISSIONING,MILL ROAD SURGERY SHEFFIELD,24014833,"39,796.31 "
Department of Health,NHS Sheffield CCG,30/09/2018,C&M-GMS MPIG Correction Factor,PRC DELEGATED CO-COMMISSIONING,MILL ROAD SURGERY SHEFFIELD,24014833,122.04 
Department of Health,NHS Sheffield CCG,30/09/2018,C&M-GMS PCO Other,PRC DELEGATED CO-COMMISSIONING,MILL ROAD SURGERY SHEFFIELD,24014833,389.44 
Department of Health,NHS Sheffield CCG,30/09/2018,C&M-GMS PCO Seniority,PRC DELEGATED CO-COMMISSIONING,MILL ROAD SURGERY SHEFFIELD,24014833,674.18 
Department of Health,NHS Sheffield CCG,30/09/2018,C&M-GMS Prem Notional Rent,PRC DELEGATED CO-COMMISSIONING,MILL ROAD SURGERY SHEFFIELD,24014833,"4,593.33 "
Department of Health,NHS Sheffield CCG,30/09/2018,C&M-GMS Prem Rates,PRC DELEGATED CO-COMMISSIONING,MILL ROAD SURGERY SHEFFIELD,24014833,972.00 
Department of Health,NHS Sheffield CCG,30/09/2018,C&M-GMS Prof Fees Prescribing,PRC DELEGATED CO-COMMISSIONING,MILL ROAD SURGERY SHEFFIELD,24014833,131.10 
Department of Health,NHS Sheffield CCG,30/09/2018,C&M-GMS QOF Aspiration,PRC DELEGATED CO-COMMISSIONING,MILL ROAD SURGERY SHEFFIELD,24014833,"4,960.33 "
Department of Health,NHS Sheffield CCG,30/09/2018,Clinical&Medical-Independent Sector,Mental Health Services - S117 Mental Health,MOORVILLE RESIDENTIAL,23979662,"1,212.72 "
Department of Health,NHS Sheffield CCG,30/09/2018,Cont Care-Learning Disab(<65),CHC ADULT FULLY FUNDED,MOORVILLE RESIDENTIAL,23979662,"20,005.05 "
Department of Health,NHS Sheffield CCG,30/09/2018,Cont Care-Learning Disab(<65),CHC ADULT JOINT FUNDED,MOORVILLE RESIDENTIAL,23979662,"8,124.31 "
Department of Health,NHS Sheffield CCG,30/09/2018,Cont Care-Mental Health (<65),CHC ADULT JOINT FUNDED,MOORVILLE RESIDENTIAL,23979662,491.57 
Department of Health,NHS Sheffield CCG,30/09/2018,C&M-PMS Contract Value,PRC DELEGATED CO-COMMISSIONING,MOSBOROUGH HEALTH CENTRE,23812825,"47,415.50 "
Department of Health,NHS Sheffield CCG,30/09/2018,C&M-PMS DES Extended Hours Access,PRC DELEGATED CO-COMMISSIONING,MOSBOROUGH HEALTH CENTRE,23812825,"3,129.78 "
Department of Health,NHS Sheffield CCG,30/09/2018,C&M-PMS DES Learn Dsblty Hlth Chk,PRC DELEGATED CO-COMMISSIONING,MOSBOROUGH HEALTH CENTRE,23812825,560.00 
Department of Health,NHS Sheffield CCG,30/09/2018,C&M-PMS PCO Other,PRC DELEGATED CO-COMMISSIONING,MOSBOROUGH HEALTH CENTRE,23812825,471.11 
Department of Health,NHS Sheffield CCG,30/09/2018,C&M-PMS PCO Seniority,PRC DELEGATED CO-COMMISSIONING,MOSBOROUGH HEALTH CENTRE,23812825,"2,302.60 "
Department of Health,NHS Sheffield CCG,30/09/2018,C&M-PMS Prem Notional Rent,PRC DELEGATED CO-COMMISSIONING,MOSBOROUGH HEALTH CENTRE,23812825,"4,091.67 "
Department of Health,NHS Sheffield CCG,30/09/2018,C&M-PMS Prem Rates,PRC DELEGATED CO-COMMISSIONING,MOSBOROUGH HEALTH CENTRE,23812825,891.00 
Department of Health,NHS Sheffield CCG,30/09/2018,C&M-PMS QOF Aspiration,PRC DELEGATED CO-COMMISSIONING,MOSBOROUGH HEALTH CENTRE,23812825,"5,763.82 "
Department of Health,NHS Sheffield CCG,30/09/2018,C&M-PMS Contract Value,PRC DELEGATED CO-COMMISSIONING,NETHERGREEN SURGERY,23812828,"61,942.43 "
Department of Health,NHS Sheffield CCG,30/09/2018,C&M-PMS DES Extended Hours Access,PRC DELEGATED CO-COMMISSIONING,NETHERGREEN SURGERY,23812828,"4,410.38 "
Department of Health,NHS Sheffield CCG,30/09/2018,C&M-PMS PCO Seniority,PRC DELEGATED CO-COMMISSIONING,NETHERGREEN SURGERY,23812828,"3,704.86 "
Department of Health,NHS Sheffield CCG,30/09/2018,C&M-PMS Prem Cost Rent,PRC DELEGATED CO-COMMISSIONING,NETHERGREEN SURGERY,23812828,"5,057.33 "
Department of Health,NHS Sheffield CCG,30/09/2018,C&M-PMS Prem Rates,PRC DELEGATED CO-COMMISSIONING,NETHERGREEN SURGERY,23812828,"1,236.00 "
Department of Health,NHS Sheffield CCG,30/09/2018,C&M-PMS QOF Aspiration,PRC DELEGATED CO-COMMISSIONING,NETHERGREEN SURGERY,23812828,"6,267.38 "
Department of Health,NHS Sheffield CCG,30/09/2018,Charges from CSU,BUSINESS INFORMATICS,NHS NORTH OF ENGLAND CSU,23962907,"30,083.00 "
Department of Health,NHS Sheffield CCG,30/09/2018,Healthcare Srv Rec CCG,CLINICAL LEADS,NHS ROTHERHAM CCG,23910545,"25,250.00 "
Department of Health,NHS Sheffield CCG,30/09/2018,Other Gen Supplies & Srv,CLINICAL LEADS,NHS ROTHERHAM CCG,23979600,"250,556.00 "
Department of Health,NHS Sheffield CCG,30/09/2018,C&M-GMS Cost of Drugs -Prescribing,LOCAL ENHANCED SERVICES,NORFOLK PARK HEALTH CENTRE,24014842,868.61 
Department of Health,NHS Sheffield CCG,30/09/2018,C&M-GMS Global Sum,PRC DELEGATED CO-COMMISSIONING,NORFOLK PARK HEALTH CENTRE,24014842,"36,547.42 "
Department of Health,NHS Sheffield CCG,30/09/2018,C&M-GMS MPIG Correction Factor,PRC DELEGATED CO-COMMISSIONING,NORFOLK PARK HEALTH CENTRE,24014842,924.61 
Department of Health,NHS Sheffield CCG,30/09/2018,C&M-GMS PCO Seniority,PRC DELEGATED CO-COMMISSIONING,NORFOLK PARK HEALTH CENTRE,24014842,"2,681.87 "
Department of Health,NHS Sheffield CCG,30/09/2018,C&M-GMS Prem Healthcentre Rent,PRC DELEGATED CO-COMMISSIONING,NORFOLK PARK HEALTH CENTRE,24014842,"24,044.86 "
Department of Health,NHS Sheffield CCG,30/09/2018,C&M-GMS Prof Fees Prescribing,PRC DELEGATED CO-COMMISSIONING,NORFOLK PARK HEALTH CENTRE,24014842,184.00 
Department of Health,NHS Sheffield CCG,30/09/2018,C&M-GMS QOF Aspiration,PRC DELEGATED CO-COMMISSIONING,NORFOLK PARK HEALTH CENTRE,24014842,"3,810.65 "
Department of Health,NHS Sheffield CCG,30/09/2018,Hcare Srv Rec Fdtn Trust-Contract Baseline,MENTAL HEALTH CONTRACTS,NORTHUMBERLAND TYNE AND WEAR NHS FOUNDATION TRUST,23806018,"74,816.02 "
Department of Health,NHS Sheffield CCG,30/09/2018,C&M-GMS Cost of Drugs -Prescribing,LOCAL ENHANCED SERVICES,NORWOOD MEDICAL CENTRE SHEFFIELD,24014845,566.38 
Department of Health,NHS Sheffield CCG,30/09/2018,C&M-GMS DES Extended Hours Access,PRC DELEGATED CO-COMMISSIONING,NORWOOD MEDICAL CENTRE SHEFFIELD,24014845,"3,785.75 "
Department of Health,NHS Sheffield CCG,30/09/2018,C&M-GMS Global Sum,PRC DELEGATED CO-COMMISSIONING,NORWOOD MEDICAL CENTRE SHEFFIELD,24014845,"63,835.09 "
Department of Health,NHS Sheffield CCG,30/09/2018,C&M-GMS PCO Other,PRC DELEGATED CO-COMMISSIONING,NORWOOD MEDICAL CENTRE SHEFFIELD,24014845,559.17 
Department of Health,NHS Sheffield CCG,30/09/2018,C&M-GMS PCO Seniority,PRC DELEGATED CO-COMMISSIONING,NORWOOD MEDICAL CENTRE SHEFFIELD,24014845,"2,884.35 "
Department of Health,NHS Sheffield CCG,30/09/2018,C&M-GMS Prem Notional Rent,PRC DELEGATED CO-COMMISSIONING,NORWOOD MEDICAL CENTRE SHEFFIELD,24014845,"5,187.50 "
Department of Health,NHS Sheffield CCG,30/09/2018,C&M-GMS Prof Fees Prescribing,PRC DELEGATED CO-COMMISSIONING,NORWOOD MEDICAL CENTRE SHEFFIELD,24014845,158.70 
Department of Health,NHS Sheffield CCG,30/09/2018,C&M-GMS QOF Aspiration,PRC DELEGATED CO-COMMISSIONING,NORWOOD MEDICAL CENTRE SHEFFIELD,24014845,"8,350.37 "
Department of Health,NHS Sheffield CCG,30/09/2018,Hcare Srv Rec NHS Trust-Contract Baseline,ACUTE COMMISSIONING,NOTTINGHAM UNIVERSITY HOSPITALS NHS TRUST,23854845,"28,040.00 "
Department of Health,NHS Sheffield CCG,30/09/2018,Clinical&Medical-Independent Sector,ACUTE COMMISSIONING,ONEHEALTH GROUP,23930606,"74,162.00 "
Department of Health,NHS Sheffield CCG,30/09/2018,C&M-GMS Cost of Drugs -Dispensing,LOCAL ENHANCED SERVICES,OUGHTIBRIDGE SURGERY,24014849,"29,351.56 "
Department of Health,NHS Sheffield CCG,30/09/2018,C&M-GMS Global Sum,PRC DELEGATED CO-COMMISSIONING,OUGHTIBRIDGE SURGERY,24014849,"42,315.23 "
Department of Health,NHS Sheffield CCG,30/09/2018,C&M-GMS PCO Seniority,PRC DELEGATED CO-COMMISSIONING,OUGHTIBRIDGE SURGERY,24014849,"1,335.34 "
Department of Health,NHS Sheffield CCG,30/09/2018,C&M-GMS Prem Notional Rent,PRC DELEGATED CO-COMMISSIONING,OUGHTIBRIDGE SURGERY,24014849,"3,957.33 "
Department of Health,NHS Sheffield CCG,30/09/2018,C&M-GMS Prem Rates,PRC DELEGATED CO-COMMISSIONING,OUGHTIBRIDGE SURGERY,24014849,976.00 
Department of Health,NHS Sheffield CCG,30/09/2018,C&M-GMS Prof Fees Dispensing,PRC DELEGATED CO-COMMISSIONING,OUGHTIBRIDGE SURGERY,24014849,"4,535.71 "
Department of Health,NHS Sheffield CCG,30/09/2018,C&M-GMS PrscrptnChrgsColl&RmttdbyGP,LOCAL ENHANCED SERVICES,OUGHTIBRIDGE SURGERY,24014849,598.40 
Department of Health,NHS Sheffield CCG,30/09/2018,C&M-GMS QOF Aspiration,PRC DELEGATED CO-COMMISSIONING,OUGHTIBRIDGE SURGERY,24014849,"4,454.94 "
Department of Health,NHS Sheffield CCG,30/09/2018,C&M-PMS Contract Value,PRC DELEGATED CO-COMMISSIONING,OWLTHORPE MEDICAL CENTRE,23812832,"33,182.99 "
Department of Health,NHS Sheffield CCG,30/09/2018,C&M-PMS Out of Hours Opt Outs,PRC DELEGATED CO-COMMISSIONING,OWLTHORPE MEDICAL CENTRE,23812832,4.14 
Department of Health,NHS Sheffield CCG,30/09/2018,C&M-PMS Prem Actual Rent,PRC DELEGATED CO-COMMISSIONING,OWLTHORPE MEDICAL CENTRE,23812832,"7,539.58 "
Department of Health,NHS Sheffield CCG,30/09/2018,C&M-PMS Prem Water Rates,PRC DELEGATED CO-COMMISSIONING,OWLTHORPE MEDICAL CENTRE,23812832,212.27 
Department of Health,NHS Sheffield CCG,30/09/2018,C&M-PMS QOF Aspiration,PRC DELEGATED CO-COMMISSIONING,OWLTHORPE MEDICAL CENTRE,23812832,"4,022.05 "
Department of Health,NHS Sheffield CCG,30/09/2018,C&M-PMS Contract Value,PRC DELEGATED CO-COMMISSIONING,PAGE HALL MEDICAL CENTRE,23842057,"56,213.68 "
Department of Health,NHS Sheffield CCG,30/09/2018,C&M-PMS DES Extended Hours Access,PRC DELEGATED CO-COMMISSIONING,PAGE HALL MEDICAL CENTRE,23842057,"3,602.40 "
Department of Health,NHS Sheffield CCG,30/09/2018,C&M-PMS PCO Locum Adop/Pat/Mat,PRC DELEGATED CO-COMMISSIONING,PAGE HALL MEDICAL CENTRE,23842057,"9,796.01 "
Department of Health,NHS Sheffield CCG,30/09/2018,C&M-PMS PCO Seniority,PRC DELEGATED CO-COMMISSIONING,PAGE HALL MEDICAL CENTRE,23842057,"2,244.80 "
Department of Health,NHS Sheffield CCG,30/09/2018,C&M-PMS Prem Notional Rent,PRC DELEGATED CO-COMMISSIONING,PAGE HALL MEDICAL CENTRE,23842057,"4,833.33 "
Department of Health,NHS Sheffield CCG,30/09/2018,C&M-PMS Prem Rates,PRC DELEGATED CO-COMMISSIONING,PAGE HALL MEDICAL CENTRE,23842057,"5,381.69 "
Department of Health,NHS Sheffield CCG,30/09/2018,C&M-PMS Prem Water Rates,PRC DELEGATED CO-COMMISSIONING,PAGE HALL MEDICAL CENTRE,23842057,191.59 
Department of Health,NHS Sheffield CCG,30/09/2018,C&M-PMS QOF Aspiration,PRC DELEGATED CO-COMMISSIONING,PAGE HALL MEDICAL CENTRE,23842057,"4,906.36 "
Department of Health,NHS Sheffield CCG,30/09/2018,C&M-PMS Contract Value,PRC DELEGATED CO-COMMISSIONING,PITSMOOR SURGERY,23812835,(342.24)
Department of Health,NHS Sheffield CCG,30/09/2018,C&M-PMS GP Statutory Levy,PRC DELEGATED CO-COMMISSIONING,PITSMOOR SURGERY,23812835,(282.18)
Department of Health,NHS Sheffield CCG,30/09/2018,C&M-PMS Out of Hours Opt Outs,PRC DELEGATED CO-COMMISSIONING,PITSMOOR SURGERY,23812835,"(3,601.74)"
Department of Health,NHS Sheffield CCG,30/09/2018,C&M-PMS Voluntary Levy,PRC DELEGATED CO-COMMISSIONING,PITSMOOR SURGERY,23812835,(47.03)
Department of Health,NHS Sheffield CCG,30/09/2018,C&M-PMS Contract Value,PRC DELEGATED CO-COMMISSIONING,PITSMOOR SURGERY,23812838,"76,146.89 "
Department of Health,NHS Sheffield CCG,30/09/2018,C&M-PMS DES Extended Hours Access,PRC DELEGATED CO-COMMISSIONING,PITSMOOR SURGERY,23812838,"4,465.95 "
Department of Health,NHS Sheffield CCG,30/09/2018,C&M-PMS DES Learn Dsblty Hlth Chk,PRC DELEGATED CO-COMMISSIONING,PITSMOOR SURGERY,23812838,"3,360.00 "
Department of Health,NHS Sheffield CCG,30/09/2018,C&M-PMS Out of Hours Opt Outs,PRC DELEGATED CO-COMMISSIONING,PITSMOOR SURGERY,23812838,16.83 
Department of Health,NHS Sheffield CCG,30/09/2018,C&M-PMS PCO Seniority,PRC DELEGATED CO-COMMISSIONING,PITSMOOR SURGERY,23812838,"1,176.37 "
Department of Health,NHS Sheffield CCG,30/09/2018,C&M-PMS Prem Notional Rent,PRC DELEGATED CO-COMMISSIONING,PITSMOOR SURGERY,23812838,"9,650.00 "
Department of Health,NHS Sheffield CCG,30/09/2018,C&M-PMS Prem Rates,PRC DELEGATED CO-COMMISSIONING,PITSMOOR SURGERY,23812838,"2,154.00 "
Department of Health,NHS Sheffield CCG,30/09/2018,C&M-PMS Prem Water Rates,PRC DELEGATED CO-COMMISSIONING,PITSMOOR SURGERY,23812838,342.58 
Department of Health,NHS Sheffield CCG,30/09/2018,C&M-PMS QOF Aspiration,PRC DELEGATED CO-COMMISSIONING,PITSMOOR SURGERY,23812838,"7,079.26 "
Department of Health,NHS Sheffield CCG,30/09/2018,C&M-PMS Contract Value,PRC DELEGATED CO-COMMISSIONING,PORTER BROOK MEDICAL CENTRE,23812840,"(8,422.02)"
Department of Health,NHS Sheffield CCG,30/09/2018,C&M-PMS GP Statutory Levy,PRC DELEGATED CO-COMMISSIONING,PORTER BROOK MEDICAL CENTRE,23812840,(831.27)
Department of Health,NHS Sheffield CCG,30/09/2018,C&M-PMS Out of Hours Opt Outs,PRC DELEGATED CO-COMMISSIONING,PORTER BROOK MEDICAL CENTRE,23812840,"(7,609.06)"
Department of Health,NHS Sheffield CCG,30/09/2018,C&M-PMS Voluntary Levy,PRC DELEGATED CO-COMMISSIONING,PORTER BROOK MEDICAL CENTRE,23812840,(138.55)
Department of Health,NHS Sheffield CCG,30/09/2018,C&M-PMS Contract Value,PRC DELEGATED CO-COMMISSIONING,PORTER BROOK MEDICAL CENTRE,23812842,"162,370.60 "
Department of Health,NHS Sheffield CCG,30/09/2018,C&M-PMS DES Extended Hours Access,PRC DELEGATED CO-COMMISSIONING,PORTER BROOK MEDICAL CENTRE,23812842,"13,684.28 "
Department of Health,NHS Sheffield CCG,30/09/2018,C&M-PMS DES Learn Dsblty Hlth Chk,PRC DELEGATED CO-COMMISSIONING,PORTER BROOK MEDICAL CENTRE,23812842,140.00 
Department of Health,NHS Sheffield CCG,30/09/2018,C&M-PMS Out of Hours Opt Outs,PRC DELEGATED CO-COMMISSIONING,PORTER BROOK MEDICAL CENTRE,23812842,414.24 
Department of Health,NHS Sheffield CCG,30/09/2018,C&M-PMS PCO Other,PRC DELEGATED CO-COMMISSIONING,PORTER BROOK MEDICAL CENTRE,23812842,"1,902.44 "
Department of Health,NHS Sheffield CCG,30/09/2018,C&M-PMS PCO Seniority,PRC DELEGATED CO-COMMISSIONING,PORTER BROOK MEDICAL CENTRE,23812842,"7,258.41 "
Department of Health,NHS Sheffield CCG,30/09/2018,C&M-PMS Prem Actual Rent,PRC DELEGATED CO-COMMISSIONING,PORTER BROOK MEDICAL CENTRE,23812842,"1,333.33 "
Department of Health,NHS Sheffield CCG,30/09/2018,C&M-PMS Prem Notional Rent,PRC DELEGATED CO-COMMISSIONING,PORTER BROOK MEDICAL CENTRE,23812842,"9,666.67 "
Department of Health,NHS Sheffield CCG,30/09/2018,C&M-PMS Prem Rates,PRC DELEGATED CO-COMMISSIONING,PORTER BROOK MEDICAL CENTRE,23812842,"2,315.00 "
Department of Health,NHS Sheffield CCG,30/09/2018,C&M-PMS QOF Aspiration,PRC DELEGATED CO-COMMISSIONING,PORTER BROOK MEDICAL CENTRE,23812842,"8,562.06 "
Department of Health,NHS Sheffield CCG,30/09/2018,Clinical&Medical-Commercial Sector,PATIENT TRANSPORT,PREMIER CARE DIRECT LTD,23725112,"112,480.54 "
Department of Health,NHS Sheffield CCG,30/09/2018,C&M-APMS DES Extended Hours Access,GP FORWARD VIEW,PRIMARY CARE SHEFFIELD LTD,23806036,"291,333.33 "
Department of Health,NHS Sheffield CCG,30/09/2018,C&M-OES Childrens Schemes,LOCAL ENHANCED SERVICES,PRIMARY EYECARE SERVICES LTD,24057559,725.00 
Department of Health,NHS Sheffield CCG,30/09/2018,C&M-OES Glaucoma,LOCAL ENHANCED SERVICES,PRIMARY EYECARE SERVICES LTD,24057559,875.00 
Department of Health,NHS Sheffield CCG,30/09/2018,C&M-OES Intra-ocular Ocular Hypertn,LOCAL ENHANCED SERVICES,PRIMARY EYECARE SERVICES LTD,24057559,200.00 
Department of Health,NHS Sheffield CCG,30/09/2018,C&M-OES PEARS,LOCAL ENHANCED SERVICES,PRIMARY EYECARE SERVICES LTD,24057559,"26,562.00 "
Department of Health,NHS Sheffield CCG,30/09/2018,C&M-PMS Contract Value,PRC DELEGATED CO-COMMISSIONING,RICHMOND MEDICAL CENTRE,23812847,"64,873.00 "
Department of Health,NHS Sheffield CCG,30/09/2018,C&M-PMS DES Extended Hours Access,PRC DELEGATED CO-COMMISSIONING,RICHMOND MEDICAL CENTRE,23812847,"4,182.85 "
Department of Health,NHS Sheffield CCG,30/09/2018,C&M-PMS DES Learn Dsblty Hlth Chk,PRC DELEGATED CO-COMMISSIONING,RICHMOND MEDICAL CENTRE,23812847,"1,400.00 "
Department of Health,NHS Sheffield CCG,30/09/2018,C&M-PMS PCO Other,PRC DELEGATED CO-COMMISSIONING,RICHMOND MEDICAL CENTRE,23812847,617.78 
Department of Health,NHS Sheffield CCG,30/09/2018,C&M-PMS PCO Seniority,PRC DELEGATED CO-COMMISSIONING,RICHMOND MEDICAL CENTRE,23812847,"2,070.42 "
Department of Health,NHS Sheffield CCG,30/09/2018,C&M-PMS Prem Notional Rent,PRC DELEGATED CO-COMMISSIONING,RICHMOND MEDICAL CENTRE,23812847,"4,731.00 "
Department of Health,NHS Sheffield CCG,30/09/2018,C&M-PMS Prem Rates,PRC DELEGATED CO-COMMISSIONING,RICHMOND MEDICAL CENTRE,23812847,"1,425.00 "
Department of Health,NHS Sheffield CCG,30/09/2018,C&M-PMS QOF Aspiration,PRC DELEGATED CO-COMMISSIONING,RICHMOND MEDICAL CENTRE,23812847,"8,188.48 "
Department of Health,NHS Sheffield CCG,30/09/2018,Cont Care-Physical Disab (<65),CHC ADULT FULLY FUNDED,ROSEBERRY CARE CENTRES,23866411,"42,606.26 "
Department of Health,NHS Sheffield CCG,30/09/2018,Cont Care-Funded Nursing Care Allow,FUNDED NURSING CARE,ROSEBERRY CARE CENTRES,23866521,"34,400.90 "
Department of Health,NHS Sheffield CCG,30/09/2018,Hcare Srv Rec Fdtn Trust-Contract Baseline,ACUTE COMMISSIONING,ROTHERHAM NHS FOUNDATION TRUST,23806003,"428,814.00 "
Department of Health,NHS Sheffield CCG,30/09/2018,C&M-PMS Contract Value,PRC DELEGATED CO-COMMISSIONING,RUSTLINGS ROAD MEDICAL CENTRE,23812855,"27,160.97 "
Department of Health,NHS Sheffield CCG,30/09/2018,C&M-PMS DES Learn Dsblty Hlth Chk,PRC DELEGATED CO-COMMISSIONING,RUSTLINGS ROAD MEDICAL CENTRE,23812855,140.00 
Department of Health,NHS Sheffield CCG,30/09/2018,C&M-PMS PCO Other,PRC DELEGATED CO-COMMISSIONING,RUSTLINGS ROAD MEDICAL CENTRE,23812855,347.11 
Department of Health,NHS Sheffield CCG,30/09/2018,C&M-PMS PCO Seniority,PRC DELEGATED CO-COMMISSIONING,RUSTLINGS ROAD MEDICAL CENTRE,23812855,"1,746.02 "
Department of Health,NHS Sheffield CCG,30/09/2018,C&M-PMS Prem Notional Rent,PRC DELEGATED CO-COMMISSIONING,RUSTLINGS ROAD MEDICAL CENTRE,23812855,"1,167.92 "
Department of Health,NHS Sheffield CCG,30/09/2018,C&M-PMS QOF Aspiration,PRC DELEGATED CO-COMMISSIONING,RUSTLINGS ROAD MEDICAL CENTRE,23812855,"2,389.45 "
Department of Health,NHS Sheffield CCG,30/09/2018,C&M-PMS Contract Value,PRC DELEGATED CO-COMMISSIONING,SELBORNE ROAD MEDICAL CENTRE,23812851,"19,359.94 "
Department of Health,NHS Sheffield CCG,30/09/2018,C&M-PMS DES Learn Dsblty Hlth Chk,PRC DELEGATED CO-COMMISSIONING,SELBORNE ROAD MEDICAL CENTRE,23812851,420.00 
Department of Health,NHS Sheffield CCG,30/09/2018,C&M-PMS Out of Hours Opt Outs,PRC DELEGATED CO-COMMISSIONING,SELBORNE ROAD MEDICAL CENTRE,23812851,3.98 
Department of Health,NHS Sheffield CCG,30/09/2018,C&M-PMS PCO Other,PRC DELEGATED CO-COMMISSIONING,SELBORNE ROAD MEDICAL CENTRE,23812851,229.64 
Department of Health,NHS Sheffield CCG,30/09/2018,C&M-PMS Prem Notional Rent,PRC DELEGATED CO-COMMISSIONING,SELBORNE ROAD MEDICAL CENTRE,23812851,"1,735.42 "
Department of Health,NHS Sheffield CCG,30/09/2018,C&M-PMS Prem Rates,PRC DELEGATED CO-COMMISSIONING,SELBORNE ROAD MEDICAL CENTRE,23812851,588.00 
Department of Health,NHS Sheffield CCG,30/09/2018,C&M-PMS Prem Water Rates,PRC DELEGATED CO-COMMISSIONING,SELBORNE ROAD MEDICAL CENTRE,23812851,554.51 
Department of Health,NHS Sheffield CCG,30/09/2018,C&M-PMS QOF Aspiration,PRC DELEGATED CO-COMMISSIONING,SELBORNE ROAD MEDICAL CENTRE,23812851,"2,043.75 "
Department of Health,NHS Sheffield CCG,30/09/2018,Cont Care-Physical Disab (<65),CHC ADULT FULLY FUNDED,SEVEN HILLS NURSING HOME,23866443,"31,755.98 "
Department of Health,NHS Sheffield CCG,30/09/2018,C&M-GMS Cost of Drugs -Prescribing,LOCAL ENHANCED SERVICES,SHARROW LANE MEDICAL CENTRE,24014854,847.28 
Department of Health,NHS Sheffield CCG,30/09/2018,C&M-GMS DES Extended Hours Access,PRC DELEGATED CO-COMMISSIONING,SHARROW LANE MEDICAL CENTRE,24014854,"1,844.43 "
Department of Health,NHS Sheffield CCG,30/09/2018,C&M-GMS Global Sum,PRC DELEGATED CO-COMMISSIONING,SHARROW LANE MEDICAL CENTRE,24014854,"22,577.90 "
Department of Health,NHS Sheffield CCG,30/09/2018,C&M-GMS MPIG Correction Factor,PRC DELEGATED CO-COMMISSIONING,SHARROW LANE MEDICAL CENTRE,24014854,"1,960.32 "
Department of Health,NHS Sheffield CCG,30/09/2018,C&M-GMS PCO Other,PRC DELEGATED CO-COMMISSIONING,SHARROW LANE MEDICAL CENTRE,24014854,302.53 
Department of Health,NHS Sheffield CCG,30/09/2018,C&M-GMS PCO Seniority,PRC DELEGATED CO-COMMISSIONING,SHARROW LANE MEDICAL CENTRE,24014854,222.82 
Department of Health,NHS Sheffield CCG,30/09/2018,C&M-GMS Prem Notional Rent,PRC DELEGATED CO-COMMISSIONING,SHARROW LANE MEDICAL CENTRE,24014854,"2,741.66 "
Department of Health,NHS Sheffield CCG,30/09/2018,C&M-GMS Prem Rates,PRC DELEGATED CO-COMMISSIONING,SHARROW LANE MEDICAL CENTRE,24014854,517.00 
Department of Health,NHS Sheffield CCG,30/09/2018,C&M-GMS Prof Fees Prescribing,PRC DELEGATED CO-COMMISSIONING,SHARROW LANE MEDICAL CENTRE,24014854,101.20 
Department of Health,NHS Sheffield CCG,30/09/2018,C&M-GMS QOF Aspiration,PRC DELEGATED CO-COMMISSIONING,SHARROW LANE MEDICAL CENTRE,24014854,"2,521.19 "
Department of Health,NHS Sheffield CCG,30/09/2018,Hcare Srv Rec Fdtn Trust-CQUIN,ACUTE CHILDRENS SERVICES,SHEFFIELD CHILDRENS NHS FOUNDATION TRUST,23722977,"33,781.00 "
Department of Health,NHS Sheffield CCG,30/09/2018,Hcare Srv Rec Fdtn Trust-CQUIN,COMMUNITY SERVICES,SHEFFIELD CHILDRENS NHS FOUNDATION TRUST,23722977,"3,984.00 "
Department of Health,NHS Sheffield CCG,30/09/2018,Hcare Srv Rec Fdtn Trust-Contract Baseline,ACUTE CHILDRENS SERVICES,SHEFFIELD CHILDRENS NHS FOUNDATION TRUST,23722977,"259,425.79 "
Department of Health,NHS Sheffield CCG,30/09/2018,Hcare Srv Rec Fdtn Trust-Contract Baseline,CHILD AND ADOLESCENT MENTAL HEALTH,SHEFFIELD CHILDRENS NHS FOUNDATION TRUST,23722977,"429,451.00 "
Department of Health,NHS Sheffield CCG,30/09/2018,Hcare Srv Rec Fdtn Trust-Contract Baseline,COMMUNITY SERVICES,SHEFFIELD CHILDRENS NHS FOUNDATION TRUST,23722977,"318,731.00 "
Department of Health,NHS Sheffield CCG,30/09/2018,Hcare Srv Rec Fdtn Trust-Contract Baseline,HIGH COST DRUGS,SHEFFIELD CHILDRENS NHS FOUNDATION TRUST,23722977,"62,433.00 "
Department of Health,NHS Sheffield CCG,30/09/2018,Hcare Srv Rec Fdtn Trust-Contract Baseline,MENTAL HEALTH CONTRACTS,SHEFFIELD CHILDRENS NHS FOUNDATION TRUST,23722977,"5,096.00 "
Department of Health,NHS Sheffield CCG,30/09/2018,Hcare Srv Rec Fdtn Trust-Contract Baseline,PLANNED CARE,SHEFFIELD CHILDRENS NHS FOUNDATION TRUST,23722977,"956,921.00 "
Department of Health,NHS Sheffield CCG,30/09/2018,Hcare Srv Rec Fdtn Trust-Contract Baseline,SAFEGUARDING,SHEFFIELD CHILDRENS NHS FOUNDATION TRUST,23722977,"33,664.00 "
Department of Health,NHS Sheffield CCG,30/09/2018,Hcare Srv Rec Fdtn Trust-Contract Baseline,URGENT CARE,SHEFFIELD CHILDRENS NHS FOUNDATION TRUST,23722977,"983,413.00 "
Department of Health,NHS Sheffield CCG,30/09/2018,Clinical&Medical-Othe Public Sector,COMMUNITY SERVICES,SHEFFIELD CITY COUNCIL,23854825,"21,831.00 "
Department of Health,NHS Sheffield CCG,30/09/2018,Clinical&Medical-Othe Public Sector,MENTAL HEALTH SERVICES - COLLABORATIVE COMMISSIONING,SHEFFIELD CITY COUNCIL,23854825,"16,919.00 "
Department of Health,NHS Sheffield CCG,30/09/2018,Clinical&Medical-Othe Public Sector,REABLEMENT,SHEFFIELD CITY COUNCIL,23854825,"160,417.00 "
Department of Health,NHS Sheffield CCG,30/09/2018,Clinical&Medical-Othe Public Sector,SAFEGUARDING,SHEFFIELD CITY COUNCIL,23854825,"15,324.00 "
Department of Health,NHS Sheffield CCG,30/09/2018,Soc Care-Joint H&C Teams/Working,INTERMEDIATE CARE,SHEFFIELD CITY COUNCIL,23854825,"151,447.00 "
Department of Health,NHS Sheffield CCG,30/09/2018,Soc Care-Other Soc Care,COMMUNITY SERVICES,SHEFFIELD CITY COUNCIL,23854825,"1,467,750.00 "
Department of Health,NHS Sheffield CCG,30/09/2018,Soc Care-Support Prim Care,COMMUNITY SERVICES,SHEFFIELD CITY COUNCIL,23854825,"58,000.00 "
Department of Health,NHS Sheffield CCG,30/09/2018,Cont Care- Prior Year Payments,CHC ADULT FULLY FUNDED,SHEFFIELD CITY COUNCIL,23866848,"28,214.55 "
Department of Health,NHS Sheffield CCG,30/09/2018,Cont Care-Physical Disab (65+),CHC ADULT FULLY FUNDED,SHEFFIELD CITY COUNCIL,23884150,"777,459.95 "
Department of Health,NHS Sheffield CCG,30/09/2018,Cont Care- Children,CHC CHILDREN,SHEFFIELD CITY COUNCIL,23884164,"222,470.85 "
Department of Health,NHS Sheffield CCG,30/09/2018,Clinical&Medical-Othe Public Sector,SAFEGUARDING,SHEFFIELD CITY COUNCIL,23979422,"49,368.56 "
Department of Health,NHS Sheffield CCG,30/09/2018,Clinical&Medical-Othe Public Sector,SAFEGUARDING,SHEFFIELD CITY COUNCIL,24022723,"52,000.00 "
Department of Health,NHS Sheffield CCG,30/09/2018,C&M-APMS Contract Value,PRC DELEGATED CO-COMMISSIONING,SHEFFIELD HEALTH & SOCIAL CARE NHS FOUNDATION TRUST,23823385,"121,756.03 "
Department of Health,NHS Sheffield CCG,30/09/2018,C&M-APMS DES Extended Hours Access,PRC DELEGATED CO-COMMISSIONING,SHEFFIELD HEALTH & SOCIAL CARE NHS FOUNDATION TRUST,23823385,"7,791.43 "
Department of Health,NHS Sheffield CCG,30/09/2018,C&M-APMS OOH Opt Outs,PRC DELEGATED CO-COMMISSIONING,SHEFFIELD HEALTH & SOCIAL CARE NHS FOUNDATION TRUST,23823385,5.00 
Department of Health,NHS Sheffield CCG,30/09/2018,C&M-APMS Prem Actual Rent,PRC DELEGATED CO-COMMISSIONING,SHEFFIELD HEALTH & SOCIAL CARE NHS FOUNDATION TRUST,23823385,"5,169.68 "
Department of Health,NHS Sheffield CCG,30/09/2018,C&M-APMS Prem Healthcentre Rent,PRC DELEGATED CO-COMMISSIONING,SHEFFIELD HEALTH & SOCIAL CARE NHS FOUNDATION TRUST,23823385,"59,021.14 "
Department of Health,NHS Sheffield CCG,30/09/2018,C&M-APMS Prem Notional Rent,PRC DELEGATED CO-COMMISSIONING,SHEFFIELD HEALTH & SOCIAL CARE NHS FOUNDATION TRUST,23823385,"2,804.17 "
Department of Health,NHS Sheffield CCG,30/09/2018,C&M-PMS Contract Value,PRC DELEGATED CO-COMMISSIONING,SHEFFIELD HEALTH & SOCIAL CARE NHS FOUNDATION TRUST,23823385,"2,915.63 "
Department of Health,NHS Sheffield CCG,30/09/2018,C&M-PMS Out of Hours Opt Outs,PRC DELEGATED CO-COMMISSIONING,SHEFFIELD HEALTH & SOCIAL CARE NHS FOUNDATION TRUST,23823385,107.98 
Department of Health,NHS Sheffield CCG,30/09/2018,C&M-PMS QOF Aspiration,PRC DELEGATED CO-COMMISSIONING,SHEFFIELD HEALTH & SOCIAL CARE NHS FOUNDATION TRUST,23823385,"11,714.38 "
Department of Health,NHS Sheffield CCG,30/09/2018,C&M-APMS Contract Value,PRC DELEGATED CO-COMMISSIONING,SHEFFIELD HEALTH & SOCIAL CARE NHS FOUNDATION TRUST,23823387,"26,620.95 "
Department of Health,NHS Sheffield CCG,30/09/2018,C&M-APMS DES Extended Hours Access,PRC DELEGATED CO-COMMISSIONING,SHEFFIELD HEALTH & SOCIAL CARE NHS FOUNDATION TRUST,23823387,"2,094.75 "
Department of Health,NHS Sheffield CCG,30/09/2018,C&M-APMS OOH Opt Outs,PRC DELEGATED CO-COMMISSIONING,SHEFFIELD HEALTH & SOCIAL CARE NHS FOUNDATION TRUST,23823387,8.11 
Department of Health,NHS Sheffield CCG,30/09/2018,C&M-PMS Contract Value,PRC DELEGATED CO-COMMISSIONING,SHEFFIELD HEALTH & SOCIAL CARE NHS FOUNDATION TRUST,23823387,639.51 
Department of Health,NHS Sheffield CCG,30/09/2018,C&M-PMS Out of Hours Opt Outs,PRC DELEGATED CO-COMMISSIONING,SHEFFIELD HEALTH & SOCIAL CARE NHS FOUNDATION TRUST,23823387,23.68 
Department of Health,NHS Sheffield CCG,30/09/2018,C&M-PMS QOF Aspiration,PRC DELEGATED CO-COMMISSIONING,SHEFFIELD HEALTH & SOCIAL CARE NHS FOUNDATION TRUST,23823387,"1,425.29 "
Department of Health,NHS Sheffield CCG,30/09/2018,Cont Care-NHSFT-Adult 100% Funded,CHC ADULT FULLY FUNDED,SHEFFIELD HEALTH & SOCIAL CARE NHS FOUNDATION TRUST,23930599,"240,830.02 "
Department of Health,NHS Sheffield CCG,30/09/2018,Hcare Srv Rec Fdtn Trust-Contract Baseline,MENTAL HEALTH CONTRACTS,SHEFFIELD HEALTH & SOCIAL CARE NHS FOUNDATION TRUST,23930602,"6,391,179.25 "
Department of Health,NHS Sheffield CCG,30/09/2018,Hcare Srv Rec Fdtn Trust-Contract Baseline,ACUTE COMMISSIONING,SHEFFIELD TEACHING HOSPITALS NHS FOUNDATION TRUST,23806016,"3,820,879.00 "
Department of Health,NHS Sheffield CCG,30/09/2018,Hcare Srv Rec Fdtn Trust-Contract Baseline,ACUTE COMMISSIONING,SHEFFIELD TEACHING HOSPITALS NHS FOUNDATION TRUST,23806021,"1,280,879.00 "
Department of Health,NHS Sheffield CCG,30/09/2018,Hcare Srv Rec Fdtn Trust-Contract Baseline,ACUTE COMMISSIONING,SHEFFIELD TEACHING HOSPITALS NHS FOUNDATION TRUST,23806022,"27,862,482.00 "
Department of Health,NHS Sheffield CCG,30/09/2018,Hcare Srv Rec Fdtn Trust-Contract Baseline,ACUTE COMMISSIONING,SHEFFIELD TEACHING HOSPITALS NHS FOUNDATION TRUST,23806023,"336,803.00 "
Department of Health,NHS Sheffield CCG,30/09/2018,Hcare Srv Rec Fdtn Trust-Contract Baseline,ACUTE COMMISSIONING,SHEFFIELD TEACHING HOSPITALS NHS FOUNDATION TRUST,23806026,"3,905,387.00 "
Department of Health,NHS Sheffield CCG,30/09/2018,Hcare Srv Rec Fdtn Trust-Contract Baseline,ACUTE COMMISSIONING,SHEFFIELD TEACHING HOSPITALS NHS FOUNDATION TRUST,23806027,"133,655.00 "
Department of Health,NHS Sheffield CCG,30/09/2018,Hcare Srv Rec Fdtn Trust-Non Contract,ACUTE COMMISSIONING,SHEFFIELD TEACHING HOSPITALS NHS FOUNDATION TRUST,23854727,"33,015.00 "
Department of Health,NHS Sheffield CCG,30/09/2018,Hcare Srv Rec Fdtn Trust-Non Contract,ACUTE COMMISSIONING,SHEFFIELD TEACHING HOSPITALS NHS FOUNDATION TRUST,24071480,"(50,040.00)"
Department of Health,NHS Sheffield CCG,30/09/2018,Hcare Srv Rec Fdtn Trust-Non Contract,ACUTE COMMISSIONING,SHEFFIELD TEACHING HOSPITALS NHS FOUNDATION TRUST,24071646,"50,040.00 "
Department of Health,NHS Sheffield CCG,30/09/2018,C&M-GMS Cost of Drugs -Prescribing,LOCAL ENHANCED SERVICES,SHIREGREEN MEDICAL CENTRE,24014860,"1,780.31 "
Department of Health,NHS Sheffield CCG,30/09/2018,C&M-GMS Global Sum,PRC DELEGATED CO-COMMISSIONING,SHIREGREEN MEDICAL CENTRE,24014860,"57,658.55 "
Department of Health,NHS Sheffield CCG,30/09/2018,C&M-GMS MPIG Correction Factor,PRC DELEGATED CO-COMMISSIONING,SHIREGREEN MEDICAL CENTRE,24014860,453.69 
Department of Health,NHS Sheffield CCG,30/09/2018,C&M-GMS PCO Other,PRC DELEGATED CO-COMMISSIONING,SHIREGREEN MEDICAL CENTRE,24014860,551.72 
Department of Health,NHS Sheffield CCG,30/09/2018,C&M-GMS PCO Seniority,PRC DELEGATED CO-COMMISSIONING,SHIREGREEN MEDICAL CENTRE,24014860,"2,672.83 "
Department of Health,NHS Sheffield CCG,30/09/2018,C&M-GMS Prem Cost Rent,PRC DELEGATED CO-COMMISSIONING,SHIREGREEN MEDICAL CENTRE,24014860,"1,792.33 "
Department of Health,NHS Sheffield CCG,30/09/2018,C&M-GMS Prem Notional Rent,PRC DELEGATED CO-COMMISSIONING,SHIREGREEN MEDICAL CENTRE,24014860,"5,375.00 "
Department of Health,NHS Sheffield CCG,30/09/2018,C&M-GMS Prem Rates,PRC DELEGATED CO-COMMISSIONING,SHIREGREEN MEDICAL CENTRE,24014860,"1,844.00 "
Department of Health,NHS Sheffield CCG,30/09/2018,C&M-GMS Prof Fees Prescribing,PRC DELEGATED CO-COMMISSIONING,SHIREGREEN MEDICAL CENTRE,24014860,218.50 
Department of Health,NHS Sheffield CCG,30/09/2018,C&M-GMS QOF Aspiration,PRC DELEGATED CO-COMMISSIONING,SHIREGREEN MEDICAL CENTRE,24014860,"6,765.83 "
Department of Health,NHS Sheffield CCG,30/09/2018,C&M-PMS Contract Value,PRC DELEGATED CO-COMMISSIONING,SLOAN MEDICAL CENTRE,23842058,"92,533.15 "
Department of Health,NHS Sheffield CCG,30/09/2018,C&M-PMS DES Extended Hours Access,PRC DELEGATED CO-COMMISSIONING,SLOAN MEDICAL CENTRE,23842058,"6,155.05 "
Department of Health,NHS Sheffield CCG,30/09/2018,C&M-PMS PCO Other,PRC DELEGATED CO-COMMISSIONING,SLOAN MEDICAL CENTRE,23842058,879.11 
Department of Health,NHS Sheffield CCG,30/09/2018,C&M-PMS PCO Seniority,PRC DELEGATED CO-COMMISSIONING,SLOAN MEDICAL CENTRE,23842058,"6,179.50 "
Department of Health,NHS Sheffield CCG,30/09/2018,C&M-PMS Prem Actual Rent,PRC DELEGATED CO-COMMISSIONING,SLOAN MEDICAL CENTRE,23842058,"15,535.83 "
Department of Health,NHS Sheffield CCG,30/09/2018,C&M-PMS Prem Notional Rent,PRC DELEGATED CO-COMMISSIONING,SLOAN MEDICAL CENTRE,23842058,608.33 
Department of Health,NHS Sheffield CCG,30/09/2018,C&M-PMS Prem Rates,PRC DELEGATED CO-COMMISSIONING,SLOAN MEDICAL CENTRE,23842058,"3,083.00 "
Department of Health,NHS Sheffield CCG,30/09/2018,C&M-PMS QOF Aspiration,PRC DELEGATED CO-COMMISSIONING,SLOAN MEDICAL CENTRE,23842058,"9,952.56 "
Department of Health,NHS Sheffield CCG,30/09/2018,C&M-PMS Contract Value,PRC DELEGATED CO-COMMISSIONING,SOTHALL MEDICAL CENTRE,23842059,"70,160.45 "
Department of Health,NHS Sheffield CCG,30/09/2018,C&M-PMS DES Extended Hours Access,PRC DELEGATED CO-COMMISSIONING,SOTHALL MEDICAL CENTRE,23842059,"4,835.50 "
Department of Health,NHS Sheffield CCG,30/09/2018,C&M-PMS DES Learn Dsblty Hlth Chk,PRC DELEGATED CO-COMMISSIONING,SOTHALL MEDICAL CENTRE,23842059,280.00 
Department of Health,NHS Sheffield CCG,30/09/2018,C&M-PMS Out of Hours Opt Outs,PRC DELEGATED CO-COMMISSIONING,SOTHALL MEDICAL CENTRE,23842059,2.80 
Department of Health,NHS Sheffield CCG,30/09/2018,C&M-PMS PCO Locum Adop/Pat/Mat,PRC DELEGATED CO-COMMISSIONING,SOTHALL MEDICAL CENTRE,23842059,"25,200.09 "
Department of Health,NHS Sheffield CCG,30/09/2018,C&M-PMS PCO Other,PRC DELEGATED CO-COMMISSIONING,SOTHALL MEDICAL CENTRE,23842059,701.89 
Department of Health,NHS Sheffield CCG,30/09/2018,C&M-PMS PCO Seniority,PRC DELEGATED CO-COMMISSIONING,SOTHALL MEDICAL CENTRE,23842059,"4,289.12 "
Department of Health,NHS Sheffield CCG,30/09/2018,C&M-PMS Prem Notional Rent,PRC DELEGATED CO-COMMISSIONING,SOTHALL MEDICAL CENTRE,23842059,"5,116.67 "
Department of Health,NHS Sheffield CCG,30/09/2018,C&M-PMS Prem Rates,PRC DELEGATED CO-COMMISSIONING,SOTHALL MEDICAL CENTRE,23842059,"1,251.00 "
Department of Health,NHS Sheffield CCG,30/09/2018,C&M-PMS Prem Water Rates,PRC DELEGATED CO-COMMISSIONING,SOTHALL MEDICAL CENTRE,23842059,317.41 
Department of Health,NHS Sheffield CCG,30/09/2018,C&M-PMS QOF Aspiration,PRC DELEGATED CO-COMMISSIONING,SOTHALL MEDICAL CENTRE,23842059,"8,691.35 "
Department of Health,NHS Sheffield CCG,30/09/2018,Cont Care- Adult 100% Fully Funded,CHC ADULT FULLY FUNDED,SOUTH YORKSHIRE HOUSING ASSOCIATION LTD,23806033,"81,249.96 "
Department of Health,NHS Sheffield CCG,30/09/2018,Cont Care-Physical Disab (<65),CHC ADULT FULLY FUNDED,SOUTH YORKSHIRE HOUSING ASSOCIATION LTD,23806042,"79,562.31 "
Department of Health,NHS Sheffield CCG,30/09/2018,Clinical&Medical-Independent Sector,MENTAL HEALTH CONTRACTS,SOUTH YORKSHIRE HOUSING ASSOCIATION LTD,23854788,"34,435.00 "
Department of Health,NHS Sheffield CCG,30/09/2018,Cont Care- Adult 100% Fully Funded,CHC ADULT FULLY FUNDED,SOUTH YORKSHIRE HOUSING ASSOCIATION LTD,23866354,"25,500.00 "
Department of Health,NHS Sheffield CCG,30/09/2018,C&M-PMS Contract Value,PRC DELEGATED CO-COMMISSIONING,SOUTHEY GREEN MEDICAL CENTRE,23812863,"25,880.34 "
Department of Health,NHS Sheffield CCG,30/09/2018,C&M-PMS Out of Hours Opt Outs,PRC DELEGATED CO-COMMISSIONING,SOUTHEY GREEN MEDICAL CENTRE,23812863,42.53 
Department of Health,NHS Sheffield CCG,30/09/2018,C&M-PMS PCO Seniority,PRC DELEGATED CO-COMMISSIONING,SOUTHEY GREEN MEDICAL CENTRE,23812863,"1,043.32 "
Department of Health,NHS Sheffield CCG,30/09/2018,C&M-PMS Prem Notional Rent,PRC DELEGATED CO-COMMISSIONING,SOUTHEY GREEN MEDICAL CENTRE,23812863,"3,362.50 "
Department of Health,NHS Sheffield CCG,30/09/2018,C&M-PMS QOF Aspiration,PRC DELEGATED CO-COMMISSIONING,SOUTHEY GREEN MEDICAL CENTRE,23812863,"2,539.36 "
Department of Health,NHS Sheffield CCG,30/09/2018,Clinical&Medical-Independent Sector,NCAS/OATS,SPAMEDICA LTD,23884049,"63,310.06 "
Department of Health,NHS Sheffield CCG,30/09/2018,C&M-GMS Global Sum,PRC DELEGATED CO-COMMISSIONING,STANNINGTON MEDICAL CENTRE,24014863,"24,130.98 "
Department of Health,NHS Sheffield CCG,30/09/2018,C&M-GMS PCO Other,PRC DELEGATED CO-COMMISSIONING,STANNINGTON MEDICAL CENTRE,24014863,257.66 
Department of Health,NHS Sheffield CCG,30/09/2018,C&M-GMS PCO Seniority,PRC DELEGATED CO-COMMISSIONING,STANNINGTON MEDICAL CENTRE,24014863,"1,218.75 "
Department of Health,NHS Sheffield CCG,30/09/2018,C&M-GMS Prem Notional Rent,PRC DELEGATED CO-COMMISSIONING,STANNINGTON MEDICAL CENTRE,24014863,"2,575.00 "
Department of Health,NHS Sheffield CCG,30/09/2018,C&M-GMS Prem Rates,PRC DELEGATED CO-COMMISSIONING,STANNINGTON MEDICAL CENTRE,24014863,368.00 
Department of Health,NHS Sheffield CCG,30/09/2018,C&M-GMS QOF Aspiration,PRC DELEGATED CO-COMMISSIONING,STANNINGTON MEDICAL CENTRE,24014863,"2,850.04 "
Department of Health,NHS Sheffield CCG,30/09/2018,C&M-GMS Cost of Drugs -Prescribing,LOCAL ENHANCED SERVICES,STONECROFT MEDICAL CENTRE,24014861,"1,028.13 "
Department of Health,NHS Sheffield CCG,30/09/2018,C&M-GMS Global Sum,PRC DELEGATED CO-COMMISSIONING,STONECROFT MEDICAL CENTRE,24014861,"31,210.37 "
Department of Health,NHS Sheffield CCG,30/09/2018,C&M-GMS MPIG Correction Factor,PRC DELEGATED CO-COMMISSIONING,STONECROFT MEDICAL CENTRE,24014861,618.25 
Department of Health,NHS Sheffield CCG,30/09/2018,C&M-GMS PCO Other,PRC DELEGATED CO-COMMISSIONING,STONECROFT MEDICAL CENTRE,24014861,315.78 
Department of Health,NHS Sheffield CCG,30/09/2018,C&M-GMS PCO Seniority,PRC DELEGATED CO-COMMISSIONING,STONECROFT MEDICAL CENTRE,24014861,"1,843.16 "
Department of Health,NHS Sheffield CCG,30/09/2018,C&M-GMS Prem Notional Rent,PRC DELEGATED CO-COMMISSIONING,STONECROFT MEDICAL CENTRE,24014861,"2,808.33 "
Department of Health,NHS Sheffield CCG,30/09/2018,C&M-GMS Prem Rates,PRC DELEGATED CO-COMMISSIONING,STONECROFT MEDICAL CENTRE,24014861,"1,188.00 "
Department of Health,NHS Sheffield CCG,30/09/2018,C&M-GMS Prof Fees Prescribing,PRC DELEGATED CO-COMMISSIONING,STONECROFT MEDICAL CENTRE,24014861,98.90 
Department of Health,NHS Sheffield CCG,30/09/2018,C&M-GMS QOF Aspiration,PRC DELEGATED CO-COMMISSIONING,STONECROFT MEDICAL CENTRE,24014861,"4,160.47 "
Department of Health,NHS Sheffield CCG,30/09/2018,Clinical&Medical-Independent Sector,MENTAL HEALTH CONTRACTS,SUSASH GB LTD T/A EAGLE HOUSE,23854779,"30,092.00 "
Department of Health,NHS Sheffield CCG,30/09/2018,C&M-GMS Global Sum,PRC DELEGATED CO-COMMISSIONING,TOTLEY RISE MEDICAL CENTRE,24014865,"23,599.83 "
Department of Health,NHS Sheffield CCG,30/09/2018,C&M-GMS MPIG Correction Factor,PRC DELEGATED CO-COMMISSIONING,TOTLEY RISE MEDICAL CENTRE,24014865,103.13 
Department of Health,NHS Sheffield CCG,30/09/2018,C&M-GMS PCO Seniority,PRC DELEGATED CO-COMMISSIONING,TOTLEY RISE MEDICAL CENTRE,24014865,"1,519.60 "
Department of Health,NHS Sheffield CCG,30/09/2018,C&M-GMS Prem Notional Rent,PRC DELEGATED CO-COMMISSIONING,TOTLEY RISE MEDICAL CENTRE,24014865,"1,491.67 "
Department of Health,NHS Sheffield CCG,30/09/2018,C&M-GMS Prem Rates,PRC DELEGATED CO-COMMISSIONING,TOTLEY RISE MEDICAL CENTRE,24014865,151.00 
Department of Health,NHS Sheffield CCG,30/09/2018,C&M-GMS QOF Aspiration,PRC DELEGATED CO-COMMISSIONING,TOTLEY RISE MEDICAL CENTRE,24014865,"1,881.75 "
Department of Health,NHS Sheffield CCG,30/09/2018,C&M-GMS Cost of Drugs -Prescribing,LOCAL ENHANCED SERVICES,TRAMWAYS MEDICAL CENTRE,24014867,"1,696.29 "
Department of Health,NHS Sheffield CCG,30/09/2018,C&M-GMS Global Sum,PRC DELEGATED CO-COMMISSIONING,TRAMWAYS MEDICAL CENTRE,24014867,"60,297.52 "
Department of Health,NHS Sheffield CCG,30/09/2018,C&M-GMS PCO Other,PRC DELEGATED CO-COMMISSIONING,TRAMWAYS MEDICAL CENTRE,24014867,597.78 
Department of Health,NHS Sheffield CCG,30/09/2018,C&M-GMS PCO Seniority,PRC DELEGATED CO-COMMISSIONING,TRAMWAYS MEDICAL CENTRE,24014867,"5,005.78 "
Department of Health,NHS Sheffield CCG,30/09/2018,C&M-GMS Prem Cost Rent,PRC DELEGATED CO-COMMISSIONING,TRAMWAYS MEDICAL CENTRE,24014867,"4,012.75 "
Department of Health,NHS Sheffield CCG,30/09/2018,C&M-GMS Prem Rates,PRC DELEGATED CO-COMMISSIONING,TRAMWAYS MEDICAL CENTRE,24014867,980.00 
Department of Health,NHS Sheffield CCG,30/09/2018,C&M-GMS Prof Fees Prescribing,PRC DELEGATED CO-COMMISSIONING,TRAMWAYS MEDICAL CENTRE,24014867,209.30 
Department of Health,NHS Sheffield CCG,30/09/2018,C&M-GMS QOF Aspiration,PRC DELEGATED CO-COMMISSIONING,TRAMWAYS MEDICAL CENTRE,24014867,"5,780.50 "
Department of Health,NHS Sheffield CCG,30/09/2018,Cont Care-Funded Nursing Care Allow,FUNDED NURSING CARE,ULTIMA CARE CENTRES (NO1) LTD,23866397,"36,354.28 "
Department of Health,NHS Sheffield CCG,30/09/2018,Hcare Srv Rec Fdtn Trust-Non Contract,NCAS/OATS,UNIVERSITY COLLEGE LONDON HOSPITALS NHS FOUNDATION TRUST,23962805,"(26,489.00)"
Department of Health,NHS Sheffield CCG,30/09/2018,Hcare Srv Rec Fdtn Trust-Non Contract,NCAS/OATS,UNIVERSITY COLLEGE LONDON HOSPITALS NHS FOUNDATION TRUST,23962807,"27,671.00 "
Department of Health,NHS Sheffield CCG,30/09/2018,C&M-PMS Contract Value,PRC DELEGATED CO-COMMISSIONING,UNIVERSITY HEALTH SERVICE,23812870,"158,165.14 "
Department of Health,NHS Sheffield CCG,30/09/2018,C&M-PMS Out of Hours Opt Outs,PRC DELEGATED CO-COMMISSIONING,UNIVERSITY HEALTH SERVICE,23812870,438.25 
Department of Health,NHS Sheffield CCG,30/09/2018,C&M-PMS PCO Seniority,PRC DELEGATED CO-COMMISSIONING,UNIVERSITY HEALTH SERVICE,23812870,"4,998.75 "
Department of Health,NHS Sheffield CCG,30/09/2018,C&M-PMS Prem Notional Rent,PRC DELEGATED CO-COMMISSIONING,UNIVERSITY HEALTH SERVICE,23812870,"15,833.33 "
Department of Health,NHS Sheffield CCG,30/09/2018,C&M-PMS QOF Aspiration,PRC DELEGATED CO-COMMISSIONING,UNIVERSITY HEALTH SERVICE,23812870,"3,984.72 "
Department of Health,NHS Sheffield CCG,30/09/2018,C&M-GMS Cost of Drugs -Prescribing,LOCAL ENHANCED SERVICES,UPPERTHORPE MEDICAL CENTRE,24014870,"3,019.51 "
Department of Health,NHS Sheffield CCG,30/09/2018,C&M-GMS DES Extended Hours Access,PRC DELEGATED CO-COMMISSIONING,UPPERTHORPE MEDICAL CENTRE,24014870,"5,447.78 "
Department of Health,NHS Sheffield CCG,30/09/2018,C&M-GMS Global Sum,PRC DELEGATED CO-COMMISSIONING,UPPERTHORPE MEDICAL CENTRE,24014870,"79,008.77 "
Department of Health,NHS Sheffield CCG,30/09/2018,C&M-GMS MPIG Correction Factor,PRC DELEGATED CO-COMMISSIONING,UPPERTHORPE MEDICAL CENTRE,24014870,"1,325.74 "
Department of Health,NHS Sheffield CCG,30/09/2018,C&M-GMS PCO Seniority,PRC DELEGATED CO-COMMISSIONING,UPPERTHORPE MEDICAL CENTRE,24014870,"3,540.28 "
Department of Health,NHS Sheffield CCG,30/09/2018,C&M-GMS Prem Actual Rent,PRC DELEGATED CO-COMMISSIONING,UPPERTHORPE MEDICAL CENTRE,24014870,"29,475.00 "
Department of Health,NHS Sheffield CCG,30/09/2018,C&M-GMS Prem Notional Rent,PRC DELEGATED CO-COMMISSIONING,UPPERTHORPE MEDICAL CENTRE,24014870,"2,497.83 "
Department of Health,NHS Sheffield CCG,30/09/2018,C&M-GMS Prem Rates,PRC DELEGATED CO-COMMISSIONING,UPPERTHORPE MEDICAL CENTRE,24014870,"2,338.00 "
Department of Health,NHS Sheffield CCG,30/09/2018,C&M-GMS Prem Water Rates,PRC DELEGATED CO-COMMISSIONING,UPPERTHORPE MEDICAL CENTRE,24014870,211.21 
Department of Health,NHS Sheffield CCG,30/09/2018,C&M-GMS Prof Fees Prescribing,PRC DELEGATED CO-COMMISSIONING,UPPERTHORPE MEDICAL CENTRE,24014870,342.70 
Department of Health,NHS Sheffield CCG,30/09/2018,C&M-GMS QOF Aspiration,PRC DELEGATED CO-COMMISSIONING,UPPERTHORPE MEDICAL CENTRE,24014870,"8,681.64 "
Department of Health,NHS Sheffield CCG,30/09/2018,C&M-PMS Contract Value,PRC DELEGATED CO-COMMISSIONING,UPWELL STREET SURGERY,23812874,"36,778.85 "
Department of Health,NHS Sheffield CCG,30/09/2018,C&M-PMS Out of Hours Opt Outs,PRC DELEGATED CO-COMMISSIONING,UPWELL STREET SURGERY,23812874,16.80 
Department of Health,NHS Sheffield CCG,30/09/2018,C&M-PMS PCO Other,PRC DELEGATED CO-COMMISSIONING,UPWELL STREET SURGERY,23812874,357.44 
Department of Health,NHS Sheffield CCG,30/09/2018,C&M-PMS PCO Seniority,PRC DELEGATED CO-COMMISSIONING,UPWELL STREET SURGERY,23812874,"2,051.13 "
Department of Health,NHS Sheffield CCG,30/09/2018,C&M-PMS Prem Notional Rent,PRC DELEGATED CO-COMMISSIONING,UPWELL STREET SURGERY,23812874,"8,137.50 "
Department of Health,NHS Sheffield CCG,30/09/2018,C&M-PMS Prem Rates,PRC DELEGATED CO-COMMISSIONING,UPWELL STREET SURGERY,23812874,"1,265.00 "
Department of Health,NHS Sheffield CCG,30/09/2018,C&M-PMS Prem Water Rates,PRC DELEGATED CO-COMMISSIONING,UPWELL STREET SURGERY,23812874,162.29 
Department of Health,NHS Sheffield CCG,30/09/2018,C&M-PMS QOF Aspiration,PRC DELEGATED CO-COMMISSIONING,UPWELL STREET SURGERY,23812874,"4,294.99 "
Department of Health,NHS Sheffield CCG,30/09/2018,C&M-PMS Contract Value,PRC DELEGATED CO-COMMISSIONING,VALLEY MEDICAL CENTRE,23812878,"77,153.32 "
Department of Health,NHS Sheffield CCG,30/09/2018,C&M-PMS Out of Hours Opt Outs,PRC DELEGATED CO-COMMISSIONING,VALLEY MEDICAL CENTRE,23812878,5.76 
Department of Health,NHS Sheffield CCG,30/09/2018,C&M-PMS PCO Seniority,PRC DELEGATED CO-COMMISSIONING,VALLEY MEDICAL CENTRE,23812878,"4,337.85 "
Department of Health,NHS Sheffield CCG,30/09/2018,C&M-PMS Prem Actual Rent,PRC DELEGATED CO-COMMISSIONING,VALLEY MEDICAL CENTRE,23812878,"25,468.75 "
Department of Health,NHS Sheffield CCG,30/09/2018,C&M-PMS Prem Rates,PRC DELEGATED CO-COMMISSIONING,VALLEY MEDICAL CENTRE,23812878,"7,521.82 "
Department of Health,NHS Sheffield CCG,30/09/2018,C&M-PMS QOF Aspiration,PRC DELEGATED CO-COMMISSIONING,VALLEY MEDICAL CENTRE,23812878,"8,516.48 "
Department of Health,NHS Sheffield CCG,30/09/2018,C&M-GMS Cost of Drugs -Prescribing,LOCAL ENHANCED SERVICES,WALKLEY HOUSE MEDICAL CENTRE,24014876,"1,306.01 "
Department of Health,NHS Sheffield CCG,30/09/2018,C&M-GMS Global Sum,PRC DELEGATED CO-COMMISSIONING,WALKLEY HOUSE MEDICAL CENTRE,24014876,"82,768.51 "
Department of Health,NHS Sheffield CCG,30/09/2018,C&M-GMS PCO Seniority,PRC DELEGATED CO-COMMISSIONING,WALKLEY HOUSE MEDICAL CENTRE,24014876,"3,107.87 "
Department of Health,NHS Sheffield CCG,30/09/2018,C&M-GMS Prem Notional Rent,PRC DELEGATED CO-COMMISSIONING,WALKLEY HOUSE MEDICAL CENTRE,24014876,"5,635.50 "
Department of Health,NHS Sheffield CCG,30/09/2018,C&M-GMS Prem Rates,PRC DELEGATED CO-COMMISSIONING,WALKLEY HOUSE MEDICAL CENTRE,24014876,"1,779.00 "
Department of Health,NHS Sheffield CCG,30/09/2018,C&M-GMS Prem Water Rates,PRC DELEGATED CO-COMMISSIONING,WALKLEY HOUSE MEDICAL CENTRE,24014876,133.75 
Department of Health,NHS Sheffield CCG,30/09/2018,C&M-GMS Prof Fees Prescribing,PRC DELEGATED CO-COMMISSIONING,WALKLEY HOUSE MEDICAL CENTRE,24014876,207.00 
Department of Health,NHS Sheffield CCG,30/09/2018,C&M-GMS QOF Aspiration,PRC DELEGATED CO-COMMISSIONING,WALKLEY HOUSE MEDICAL CENTRE,24014876,"8,592.68 "
Department of Health,NHS Sheffield CCG,30/09/2018,C&M-GMS Cost of Drugs -Prescribing,LOCAL ENHANCED SERVICES,WHITE HOUSE SURGERY SHEFFIELD,24014874,820.87 
Department of Health,NHS Sheffield CCG,30/09/2018,C&M-GMS DES Extended Hours Access,PRC DELEGATED CO-COMMISSIONING,WHITE HOUSE SURGERY SHEFFIELD,24014874,"3,021.48 "
Department of Health,NHS Sheffield CCG,30/09/2018,C&M-GMS Global Sum,PRC DELEGATED CO-COMMISSIONING,WHITE HOUSE SURGERY SHEFFIELD,24014874,"48,816.24 "
Department of Health,NHS Sheffield CCG,30/09/2018,C&M-GMS MPIG Correction Factor,PRC DELEGATED CO-COMMISSIONING,WHITE HOUSE SURGERY SHEFFIELD,24014874,"1,391.30 "
Department of Health,NHS Sheffield CCG,30/09/2018,C&M-GMS PCO Seniority,PRC DELEGATED CO-COMMISSIONING,WHITE HOUSE SURGERY SHEFFIELD,24014874,"2,241.92 "
Department of Health,NHS Sheffield CCG,30/09/2018,C&M-GMS Prem Notional Rent,PRC DELEGATED CO-COMMISSIONING,WHITE HOUSE SURGERY SHEFFIELD,24014874,"9,104.17 "
Department of Health,NHS Sheffield CCG,30/09/2018,C&M-GMS Prem Rates,PRC DELEGATED CO-COMMISSIONING,WHITE HOUSE SURGERY SHEFFIELD,24014874,"2,211.00 "
Department of Health,NHS Sheffield CCG,30/09/2018,C&M-GMS Prem Water Rates,PRC DELEGATED CO-COMMISSIONING,WHITE HOUSE SURGERY SHEFFIELD,24014874,290.74 
Department of Health,NHS Sheffield CCG,30/09/2018,C&M-GMS Prof Fees Prescribing,PRC DELEGATED CO-COMMISSIONING,WHITE HOUSE SURGERY SHEFFIELD,24014874,138.00 
Department of Health,NHS Sheffield CCG,30/09/2018,C&M-GMS QOF Aspiration,PRC DELEGATED CO-COMMISSIONING,WHITE HOUSE SURGERY SHEFFIELD,24014874,"6,017.46 "
Department of Health,NHS Sheffield CCG,30/09/2018,Cont Care-Physical Disab (<65),CHC ADULT FULLY FUNDED,WILLOWBECK HEALTH CARE LTD,23806040,"125,989.36 "
Department of Health,NHS Sheffield CCG,30/09/2018,C&M-PMS Contract Value,PRC DELEGATED CO-COMMISSIONING,WINCOBANK MEDICAL CENTRE,23812886,"60,970.28 "
Department of Health,NHS Sheffield CCG,30/09/2018,C&M-PMS DES Extended Hours Access,PRC DELEGATED CO-COMMISSIONING,WINCOBANK MEDICAL CENTRE,23812886,"3,636.13 "
Department of Health,NHS Sheffield CCG,30/09/2018,C&M-PMS Out of Hours Opt Outs,PRC DELEGATED CO-COMMISSIONING,WINCOBANK MEDICAL CENTRE,23812886,3.39 
Department of Health,NHS Sheffield CCG,30/09/2018,C&M-PMS PCO Seniority,PRC DELEGATED CO-COMMISSIONING,WINCOBANK MEDICAL CENTRE,23812886,"1,981.69 "
Department of Health,NHS Sheffield CCG,30/09/2018,C&M-PMS Prem Healthcentre Rent,PRC DELEGATED CO-COMMISSIONING,WINCOBANK MEDICAL CENTRE,23812886,"44,024.50 "
Department of Health,NHS Sheffield CCG,30/09/2018,C&M-PMS Prem Rates,PRC DELEGATED CO-COMMISSIONING,WINCOBANK MEDICAL CENTRE,23812886,"17,454.61 "
Department of Health,NHS Sheffield CCG,30/09/2018,C&M-PMS QOF Aspiration,PRC DELEGATED CO-COMMISSIONING,WINCOBANK MEDICAL CENTRE,23812886,"6,309.99 "
Department of Health,NHS Sheffield CCG,30/09/2018,C&M-PMS Contract Value,PRC DELEGATED CO-COMMISSIONING,WOODHOUSE HEALTH CENTRE,23812882,"98,442.70 "
Department of Health,NHS Sheffield CCG,30/09/2018,C&M-PMS DES Extended Hours Access,PRC DELEGATED CO-COMMISSIONING,WOODHOUSE HEALTH CENTRE,23812882,"5,783.60 "
Department of Health,NHS Sheffield CCG,30/09/2018,C&M-PMS DES Learn Dsblty Hlth Chk,PRC DELEGATED CO-COMMISSIONING,WOODHOUSE HEALTH CENTRE,23812882,840.00 
Department of Health,NHS Sheffield CCG,30/09/2018,C&M-PMS PCO Seniority,PRC DELEGATED CO-COMMISSIONING,WOODHOUSE HEALTH CENTRE,23812882,"6,218.05 "
Department of Health,NHS Sheffield CCG,30/09/2018,C&M-PMS Prem Notional Rent,PRC DELEGATED CO-COMMISSIONING,WOODHOUSE HEALTH CENTRE,23812882,"6,338.58 "
Department of Health,NHS Sheffield CCG,30/09/2018,C&M-PMS QOF Aspiration,PRC DELEGATED CO-COMMISSIONING,WOODHOUSE HEALTH CENTRE,23812882,"13,695.89 "
Department of Health,NHS Sheffield CCG,30/09/2018,C&M-PMS Contract Value,PRC DELEGATED CO-COMMISSIONING,WOODSEATS MEDICAL CENTRE,23825800,"73,012.01 "
Department of Health,NHS Sheffield CCG,30/09/2018,C&M-PMS DES Extended Hours Access,PRC DELEGATED CO-COMMISSIONING,WOODSEATS MEDICAL CENTRE,23825800,"4,581.85 "
Department of Health,NHS Sheffield CCG,30/09/2018,C&M-PMS PCO Other,PRC DELEGATED CO-COMMISSIONING,WOODSEATS MEDICAL CENTRE,23825800,661.44 
Department of Health,NHS Sheffield CCG,30/09/2018,C&M-PMS PCO Seniority,PRC DELEGATED CO-COMMISSIONING,WOODSEATS MEDICAL CENTRE,23825800,"1,825.60 "
Department of Health,NHS Sheffield CCG,30/09/2018,C&M-PMS Prem Notional Rent,PRC DELEGATED CO-COMMISSIONING,WOODSEATS MEDICAL CENTRE,23825800,"11,666.67 "
Department of Health,NHS Sheffield CCG,30/09/2018,C&M-PMS Prem Rates,PRC DELEGATED CO-COMMISSIONING,WOODSEATS MEDICAL CENTRE,23825800,"3,032.00 "
Department of Health,NHS Sheffield CCG,30/09/2018,C&M-PMS QOF Aspiration,PRC DELEGATED CO-COMMISSIONING,WOODSEATS MEDICAL CENTRE,23825800,"7,979.47 "
Department of Health,NHS Sheffield CCG,30/09/2018,Hcare Srv Rec NHS Trust-Contract Baseline,PATIENT TRANSPORT,YORKSHIRE AMBULANCE SERVICE NHS TRUST,23725078,"245,019.60 "
Department of Health,NHS Sheffield CCG,30/09/2018,Hcare Srv Rec NHS Trust-Contract Baseline,AMBULANCE SERVICES,YORKSHIRE AMBULANCE SERVICE NHS TRUST,23725079,"124,103.00 "
Department of Health,NHS Sheffield CCG,30/09/2018,Hcare Srv Rec NHS Trust-CQUIN,AMBULANCE SERVICES,YORKSHIRE AMBULANCE SERVICE NHS TRUST,23725080,"34,499.00 "
Department of Health,NHS Sheffield CCG,30/09/2018,Hcare Srv Rec NHS Trust-Contract Baseline,AMBULANCE SERVICES,YORKSHIRE AMBULANCE SERVICE NHS TRUST,23725085,"1,509,029.00 "
Department of Health,NHS Sheffield CCG,30/09/2018,Hcare Srv Rec NHS Trust-Contract Baseline,NHS 111,YORKSHIRE AMBULANCE SERVICE NHS TRUST,23725087,"114,923.00 "
,,,,,,,"61,877,328.78 "
